Cogmind - Beta 16 @@@ ROGUE MODE // 2025.11.06 @ 15:29:53 Player: H3-MLN Result: Destroyed by M Guard with Ragnarok Missile Launcher Performance ------------- Evolutions (9) 4500 Regions Visited (40) 8000 Robots Destroyed (169) 845 Value Destroyed (11383) 11383 Prototype IDs (96) 1920 Alien Tech Used (0) 0 Bonus (16481) 16481 TOTAL SCORE: 43129 Bonus ------- High Alert Combat Kills 264 Follower Combat Kills 7329 Entered Garrisons 2200 Used RIF Installer 6000 Network Hubs Disabled 400 Aligned with FarCom 300 Built Enhanced Grunts 300 A7 Reached Mainframe 300 Met R17 at Cetus 500 Met R17 at Research 2000 Friendly Fire -3112 Cogmind --------- Core Integrity 0/1600 Matter 157/300 Energy 48/100 System Corruption 8% Temperature Cool (9) Movement Core (50) Location -1/Command Parts ------- > --- POWER (1) -------- (None) > --- PROPULSION (2) --- (None) > --- UTILITY (20) ----- Advanced Signal Interpreter Improved Terrain Scan Processor Graphene Brace Relay Coupler [C] (65) Relay Coupler [Proto] (22) Relay Coupler [Proto] (25) > --- WEAPON (2) ------- (None) > --- INVENTORY (5) ---- Enhanced Nova Cannon Tactical Quantum Warhead Advanced Datajack Nanosword Peak State ------------ > --- POWER ------------ Micro Antimatter Reactor > --- PROPULSION ------- Field Propulsion Array > --- UTILITY ---------- Advanced Visual Processing Unit Advanced Sensor Array Advanced Signal Interpreter Improved Terrain Scan Processor Advanced Melee Analysis Suite Experimental Core Analyzer Femtoactuators Experimental Utility Shielding Relay Coupler [NC] Relay Coupler [C] Relay Coupler [C] Relay Coupler [Sentry] Relay Coupler [Hunter] Relay Coupler [Behemoth] Relay Coupler [Proto] Relay Coupler [Proto] Relay Coupler [Proto] Relay Coupler [Proto] Relay Coupler [Proto] Relay Coupler [Proto] > --- WEAPON ----------- Advanced Datajack Nanosword > --- INVENTORY -------- Long-range Terrain Scanner Graphene Brace Enhanced Nova Cannon Tactical Quantum Warhead Gravity Flail [Rating: 175] Favorites ----------- Power Backup Power I Engine Backup Power I Power Core Micro Nuclear Core Reactor Micro Antimatter Reactor Propulsion Improved VTOL Module Hover Unit Backup Propulsion III Flight Unit Improved VTOL Module Utility Relay Coupler [Proto] Device Graphene Brace Storage Advanced Matter Compressor Processor Advanced Visual Processing Unit Hackware Relay Coupler [Proto] Protection Experimental Utility Shielding Weapon Longsword +1 Energy Gun Quantum Rifle Energy Cannon Enhanced Nova Cannon Ballistic Gun Autogun Ballistic Cannon Magnetic Acceleration Cannon Launcher Heavy Proton Missile Launcher Special Weapon Advanced Remote Datajack Impact Weapon Gravity Flail Slashing Weapon Longsword +1 Piercing Weapon Lance Special Melee Weapon Improved Datajack Build | -11 -10 -10 -9 -9 -9 -8 -8 -8 -8 -8 -7 -7 -7 -7 -6 -6 -6 -6 -5 -5 -5 -5 -4 -4 -4 -4 -4 -4 -4 -4 -3 -3 -2 -2 -2 -2 -1 -1 -1 -1 ------- Run | Yrd Mat Min Mat Min Exi Min Mat Gar Mat Gar Fac Was Fac Gar Fac Was Fac Gar Fac Was Fac Gar Fac Gar Fac Ext Cet Arc Hub Gar Res Gar Res Gar Res Gar Acc Gar Acc Com Slots Evolved 18 | . . . 2 . . . 2 . . . 2 . . . 2 . . . 2 . . . 2 . . . . . . . 2 . 2 . . . 2 . . . Power . | . . . . . . . . . . . . . . . . . . . . . . . . . . . . . . . . . . . . . . . . . Propulsion . | . . . . . . . . . . . . . . . . . . . . . . . . . . . . . . . . . . . . . . . . . Utility 18 | . . . 2 . . . 2 . . . 2 . . . 2 . . . 2 . . . 2 . . . . . . . 2 . 2 . . . 2 . . . Weapon . | . . . . . . . . . . . . . . . . . . . . . . . . . . . . . . . . . . . . . . . . . Parts Attached 261 | 2 9 . 13 1 2 . 9 1 5 4 6 . 1 4 5 . 7 12 13 5 8 15 3 19 11 9 2 8 7 22 9 4 9 9 1 7 2 3 11 3 Power 21 | . 2 . . . . . 1 . . . . . . . . . 1 . 1 2 . . . . . 3 . . 1 1 . . 1 2 . 2 . . 4 . Engine 8 | . 2 . . . . . . . . . . . . . . . . . . 1 . . . . . 1 . . 1 . . . 1 . . . . . 2 . Core 8 | . . . . . . . 1 . . . . . . . . . 1 . 1 1 . . . . . 2 . . . 1 . . . . . 1 . . . . Reactor 5 | . . . . . . . . . . . . . . . . . . . . . . . . . . . . . . . . . . 2 . 1 . . 2 . Propulsion 35 | . 3 . 3 . . . 2 . 1 . 1 . . 1 . . 2 1 4 1 . . . 1 4 . . . 2 2 . . 1 2 . 1 . 2 1 . Treads . | . . . . . . . . . . . . . . . . . . . . . . . . . . . . . . . . . . . . . . . . . Leg . | . . . . . . . . . . . . . . . . . . . . . . . . . . . . . . . . . . . . . . . . . Wheel . | . . . . . . . . . . . . . . . . . . . . . . . . . . . . . . . . . . . . . . . . . Hover . | . . . . . . . . . . . . . . . . . . . . . . . . . . . . . . . . . . . . . . . . . Flight 35 | . 3 . 3 . . . 2 . 1 . 1 . . 1 . . 2 1 4 1 . . . 1 4 . . . 2 2 . . 1 2 . 1 . 2 1 . Utility 157 | . 2 . 6 1 . . 5 1 2 4 5 . 1 2 4 . 3 8 7 1 8 13 2 17 5 1 . 5 2 16 7 4 5 5 1 4 2 1 5 2 Device 30 | . 1 . . 1 . . 2 1 . 1 . . . . . . . 1 2 1 3 . . . 2 1 . . 1 3 2 . 3 1 . 1 1 . 1 1 Storage 1 | . . . . . . . . . . . . . . . . . . . . . . . . . . . . . . . 1 . . . . . . . . . Processor 20 | . 1 . 1 . . . 2 . 1 . 1 . . . . . 1 . . . 2 . . . 1 . . . 1 1 2 . . . 1 . 1 . 4 . Hackware 102 | . . . 4 . . . . . 1 3 4 . 1 2 4 . 2 7 5 . 3 13 2 16 2 . . 5 . 12 2 4 1 4 . 3 . 1 . 1 Protection 4 | . . . 1 . . . 1 . . . . . . . . . . . . . . . . 1 . . . . . . . . 1 . . . . . . . Artifact . | . . . . . . . . . . . . . . . . . . . . . . . . . . . . . . . . . . . . . . . . . Weapon 48 | 2 2 . 4 . 2 . 1 . 2 . . . . 1 1 . 1 3 1 1 . 2 1 1 2 5 2 3 2 3 2 . 2 . . . . . 1 1 Energy Gun 3 | . . . . . . . . . . . . . . . . . . 1 . 1 . . . . . . 1 . . . . . . . . . . . . . Energy Cannon 2 | . . . . . . . . . . . . . . . . . . . . . . 1 . . . . . . . 1 . . . . . . . . . . Ballistic Gun 9 | 2 2 . 2 . . . . . . . . . . . . . . . . . . . . 1 . . 1 . . 1 . . . . . . . . . . Ballistic Cannon 1 | . . . . . . . . . . . . . . . . . 1 . . . . . . . . . . . . . . . . . . . . . . . Launcher 7 | . . . 1 . . . . . . . . . . 1 . . . 1 . . . . . . . 2 . . . . . . 2 . . . . . . . Special Weapon 5 | . . . . . . . . . . . . . . . . . . . . . . 1 . . 1 1 . . . 1 . . . . . . . . . 1 Impact Weapon 3 | . . . 1 . . . . . . . . . . . . . . . . . . . 1 . . . . . . . 1 . . . . . . . . . Slashing Weapon 7 | . . . . . 1 . 1 . 1 . . . . . . . . . . . . . . . . 1 . 1 1 . 1 . . . . . . . . . Piercing Weapon 2 | . . . . . . . . . . . . . . . . . . . . . . . . . . 1 . . 1 . . . . . . . . . . . Special Melee Weapon 9 | . . . . . 1 . . . 1 . . . . . 1 . . 1 1 . . . . . 1 . . 2 . . . . . . . . . . 1 . Unidentified Prototypes 18 | . . . . 1 . . 1 . . . . . . . . . . . 2 1 1 . . 1 . 1 2 . 1 . 4 . 1 1 . . . . . 1 Parts Lost 87 | . 4 . 2 . . . 5 . . . . . . 3 . . 9 3 8 . 2 . . 8 3 5 . . 2 4 . 1 1 3 . 2 . 2 9 11 Power 14 | . 1 . 1 . . . 1 . . . . . . . . . 1 . 1 . . . . 1 2 1 . . . . . . 1 1 . 1 . 1 1 . Propulsion 20 | . 1 . 1 . . . 1 . . . . . . . . . 2 1 . . . . . 3 . 2 . . 1 1 . 1 . 2 . 1 . 1 1 1 Utility 41 | . . . . . . . 2 . . . . . . 2 . . 4 1 7 . 1 . . 4 1 1 . . . 3 . . . . . . . . 6 9 Weapon 12 | . 2 . . . . . 1 . . . . . . 1 . . 2 1 . . 1 . . . . 1 . . 1 . . . . . . . . . 1 1 Highest Loss Streak 11 | . 2 . 1 . . . 2 . . . . . . 2 . . 9 2 7 . 2 . . 8 1 1 . . 2 1 . 1 1 3 . 2 . 1 4 11 To Critical Strikes 1 | . . . . . . . 1 . . . . . . . . . . . . . . . . . . . . . . . . . . . . . . . . . Average Backups 4 | 1 3 4 4 5 5 5 4 5 5 4 4 5 5 4 4 5 3 4 4 5 4 4 4 4 4 4 4 5 5 4 4 3 3 4 5 5 4 4 5 4 Power . | 1 1 1 . . . . . . . . . . . . . . . . . . . . . . . . . . . . . . . . . . . . . . Propulsion . | . . . . 1 1 1 1 1 1 1 1 1 1 1 1 1 1 . . . . . . . . . . . . . . . . . . . . . . . Utility 1 | . 1 2 . 1 2 2 2 2 3 2 2 3 3 2 2 3 1 3 2 3 3 3 2 2 1 1 2 2 2 1 1 . . 1 2 2 1 1 1 . Weapon 1 | . 1 1 1 1 1 1 1 1 1 1 . 1 1 1 1 1 1 1 1 1 1 1 2 1 2 2 2 2 2 2 2 2 2 2 2 2 2 3 2 2 Tool/Special . | . . . . . . . . . . . . . . . . . . . . . . . . . . . . . . . . . . . . . . . . . Unused Backups 24 | . 4 . 2 1 . . . . . . 2 . . . . 1 1 2 1 . 1 . 3 1 . . . . . 1 1 . . 1 2 . . . . . Power 2 | . 2 . . . . . . . . . . . . . . . . . . . . . . . . . . . . . . . . . . . . . . . Propulsion 5 | . . . 1 . . . . . . . . . . . . . 1 . . . . . 3 . . . . . . . . . . . . . . . . . Utility 12 | . 1 . . . . . . . . . 1 . . . . 1 . 2 . . 1 . . 1 . . . . . 1 1 . . 1 2 . . . . . Weapon 4 | . 1 . 1 . . . . . . . 1 . . . . . . . 1 . . . . . . . . . . . . . . . . . . . . . Tool/Special 1 | . . . . 1 . . . . . . . . . . . . . . . . . . . . . . . . . . . . . . . . . . . . Average Slot Usage (%) 88 | . 79 100 98 100 100 100 94 90 90 100 96 96 98 96 93 100 71 88 75 63 76 91 89 74 95 76 63 75 95 86 97 93 89 94 96 95 98 94 95 74 Engine 3 | . 6 14 10 11 11 11 8 . . 9 7 7 7 7 6 6 2 . . 3 5 5 5 . 2 . . . 2 . 3 4 3 . 1 1 3 2 2 . Flight 10 | . 20 28 21 22 22 22 18 18 18 18 15 15 15 15 13 13 10 13 10 11 9 11 9 . 9 4 . . 8 8 9 5 7 7 8 6 8 6 6 3 Device 5 | . 11 14 1 9 11 11 10 9 9 3 6 7 7 2 . . 2 3 3 4 9 1 4 . 2 5 5 5 4 3 3 4 8 8 7 4 8 7 8 11 Processor 7 | . 11 14 12 1 . . 6 18 18 10 10 11 7 7 6 6 3 6 1 . 2 7 5 5 5 5 5 5 5 1 3 4 4 4 4 4 6 8 18 19 Hackware 48 | . . . 28 33 33 33 26 18 25 40 40 38 44 48 54 60 44 47 49 35 40 57 58 64 64 52 47 56 63 66 67 65 58 59 60 64 60 60 48 31 Protection 1 | . . . 1 . . . 8 8 1 . . . . . . . . . . . . . . . . . . . . . . . . 4 3 4 4 4 3 . Ballistic Gun 1 | . 28 28 13 10 1 11 . . . . . . . . . . . . . . . . . . . . . . . . . . . . . . . . . . Impact Weapon 1 | . . . 7 11 7 . . . . . . . . . . . . . . . . . . . 4 2 . . . . 2 . . 2 3 1 . . . 3 Slashing Weapon 3 | . . . . . 3 11 9 18 16 9 7 7 7 6 6 6 2 . . . . . . . . . . 1 2 . 1 4 3 3 4 4 4 4 3 . Special Melee Weapon 2 | . . . . . 9 . 5 . 1 9 7 7 7 5 5 6 2 3 . 4 4 . . . 1 1 . 5 5 . . . . . . . . . 1 3 Peak Build Rating 175 | 2 8 8 23 29 27 28 34 36 35 39 47 44 43 48 52 53 54 66 70 61 80 83 90 91 116 118 87 104 117 103 123 123 150 153 143 145 152 161 175 140 Average Rating 81 | 1 6 8 18 22 23 28 32 33 33 38 43 41 42 44 48 52 37 57 55 54 63 72 78 67 101 92 80 93 111 91 116 116 128 141 140 139 150 149 162 137 On Entrance 69 | . 2 8 8 23 22 27 28 34 33 35 38 44 40 43 44 52 52 37 62 47 53 69 73 76 79 108 86 81 104 101 99 122 116 142 140 141 144 152 161 127 Avg Prop Armor Cover (%) 10 | . . . . . . . . . . . . . . . . . . . . 14 . . . 10 3 7 . . . . . . . 14 . . . . . . Naked Turns . | . . . . . . . . . . . . . . . . . . . . . . . . . . . . . . . . . . . . . . . . . Heaviest Build 33 | 3 7 4 8 9 8 8 10 11 9 7 8 7 7 7 6 6 8 14 24 11 9 12 22 12 9 16 16 6 15 22 9 10 11 33 11 13 13 13 15 23 Greatest Support 15 | 3 8 8 10 10 10 10 10 10 10 10 10 10 10 10 9 9 14 14 14 11 9 9 9 9 14 10 3 3 12 8 10 10 11 12 14 14 14 14 15 15 Greatest Overweight (x) 6 | . . . . . . . 1 3 . . . . . . . . . . 1 2 1 1 4 1 . 5 5 1 1 2 . 1 2 6 . 1 . 1 . 3 Average Overweight (x) . | . . . . . . . . . . . . . . . . . . . . . . . . . . . 1 . . . . . . . . . . . . . Largest Inventory Capacity 5 | 5 5 5 5 5 5 5 5 5 5 5 5 5 5 5 5 5 5 5 5 5 5 5 5 5 5 5 5 5 5 5 5 5 5 5 5 5 5 5 5 5 Average Capacity 5 | 5 5 5 5 5 5 5 5 5 5 5 5 5 5 5 5 5 5 5 5 5 5 5 5 5 5 5 5 5 5 5 5 5 5 5 5 5 5 5 5 5 Most Carried 5 | 3 5 5 5 5 5 5 5 5 5 5 5 5 5 5 5 5 5 5 5 5 5 5 5 5 5 5 5 5 5 5 5 5 5 5 5 5 5 5 5 5 Average Carried 4 | 1 3 4 4 4 5 5 4 4 5 4 4 5 5 4 4 4 3 4 4 4 4 4 4 4 4 4 4 5 4 4 4 4 4 4 4 4 4 4 4 4 Final Capacity 5 | 5 5 5 5 5 5 5 5 5 5 5 5 5 5 5 5 5 5 5 5 5 5 5 5 5 5 5 5 5 5 5 5 5 5 5 5 5 5 5 5 5 Final Carried 5 | 2 4 5 5 5 5 5 5 5 5 5 5 5 5 5 5 5 5 5 5 5 5 5 5 5 5 5 5 5 5 5 5 5 5 5 5 5 4 5 5 4 Class Distribution -------------------- 26% | Botlord-Mutant 15% | Botlord-Scout 13% | Hacker-Scout 10% | Hacker-Mutant 10% | Hacker-Sprinter 9% | Botlord-Sprinter 5% | Wizard-Sprinter 3% | Mutant Dominant Class ---------------- Mutant | -10/Materials Scavenger-Mutant | -10/Mines Hacker-Mutant | -9/Materials Hacker-Mutant | -9/Mines Hacker-Mutant | -9/Exiles Hacker-Mutant | -8/Mines Hacker-Scout | -8/Materials Hacker-Scout | -8/Garrison Hacker-Scout | -8/Materials Hacker-Sprinter | -8/Garrison Hacker-Sprinter | -7/Factory Hacker-Scout | -7/Waste Hacker-Scout | -7/Factory Wizard-Sprinter | -7/Garrison Wizard-Sprinter | -6/Factory Wizard-Sprinter | -6/Waste Hacker-Mutant | -6/Factory Hacker-Mutant | -6/Garrison Hacker-Scout | -5/Factory Hacker-Sprinter | -5/Waste Hacker-Sprinter | -5/Factory Bothacker-Sprinter | -5/Garrison Wizard-Sprinter | -4/Factory Botlord-Mutant | -4/Garrison Botlord-Sprinter | -4/Factory Botlord-Mutant | -4/Extension Botlord-Mutant | -4/Cetus Wizard-Mutant | -4/Archives Wizard-Sprinter | -4/Hub_04(d) Botlord-Sprinter | -4/Garrison Botlord-Scout | -3/Research Botlord-Scout | -3/Garrison Botlord-Scout | -2/Research Botlord-Scout | -2/Garrison Botlord-Scout | -2/Research Botlord-Mutant | -2/Garrison Botlord-Scout | -1/Access Botlord-Mutant | -1/Garrison Botlord-Scout | -1/Access Botlord-Mutant | -1/Command Resources | -11 -10 -10 -9 -9 -9 -8 -8 -8 -8 -8 -7 -7 -7 -7 -6 -6 -6 -6 -5 -5 -5 -5 -4 -4 -4 -4 -4 -4 -4 -4 -3 -3 -2 -2 -2 -2 -1 -1 -1 -1 ----------- Run | Yrd Mat Min Mat Min Exi Min Mat Gar Mat Gar Fac Was Fac Gar Fac Was Fac Gar Fac Was Fac Gar Fac Gar Fac Ext Cet Arc Hub Gar Res Gar Res Gar Res Gar Acc Gar Acc Com Matter Collected 7289 | 220 269 . 189 140 . 30 107 213 22 78 50 . 34 70 . . 74 451 305 130 150 339 238 546 285 336 57 117 140 534 250 160 177 385 . 429 50 235 449 30 Remotely . | . . . . . . . . . . . . . . . . . . . . . . . . . . . . . . . . . . . . . . . . . Salvage Created 6680 | . 419 . 213 113 . 84 205 631 22 184 148 . 34 113 . . . 141 68 . . . . . 231 419 . 303 828 628 239 153 77 585 . 346 78 . 388 30 Parts 349 | . 26 . 20 19 . 2 19 17 4 11 15 . 3 7 . . . 6 4 . . . . . 16 8 . 29 37 22 3 8 9 18 . 16 5 . 22 3 Haulers Intercepted 8 | . 2 . . . . . 1 . . . 1 . . . . . . . . . . . . . . . . . 2 . 1 . . . . . . . 1 . Recyclers Shooed 3 | . 2 . . . . . 1 . . . . . . . . . . . . . . . . . . . . . . . . . . . . . . . . . Parts Field Recycled . | . . . . . . . . . . . . . . . . . . . . . . . . . . . . . . . . . . . . . . . . . Retrieved Matter . | . . . . . . . . . . . . . . . . . . . . . . . . . . . . . . . . . . . . . . . . . Parts Self-Destructed . | . . . . . . . . . . . . . . . . . . . . . . . . . . . . . . . . . . . . . . . . . Prevented . | . . . . . . . . . . . . . . . . . . . . . . . . . . . . . . . . . . . . . . . . . Parts Restored . | . . . . . . . . . . . . . . . . . . . . . . . . . . . . . . . . . . . . . . . . . Kills | -11 -10 -10 -9 -9 -9 -8 -8 -8 -8 -8 -7 -7 -7 -7 -6 -6 -6 -6 -5 -5 -5 -5 -4 -4 -4 -4 -4 -4 -4 -4 -3 -3 -2 -2 -2 -2 -1 -1 -1 -1 ------- Run | Yrd Mat Min Mat Min Exi Min Mat Gar Mat Gar Fac Was Fac Gar Fac Was Fac Gar Fac Was Fac Gar Fac Gar Fac Ext Cet Arc Hub Gar Res Gar Res Gar Res Gar Acc Gar Acc Com Combat Hostiles Destroyed 91 | . 8 . 6 7 . . 10 10 . 1 . . . 2 . . . 4 3 . . . . . 7 2 . . 2 7 . 2 4 6 . 5 . . 5 . Melee 31 | . . . . 1 . . 2 10 . 1 . . . 1 . . . . . . . . . . 1 . . . . 1 . 2 . 5 . 5 . . 2 . Guns 11 | . 8 . . . . . . . . . . . . . . . . 2 . . . . . . . . . . . 1 . . . . . . . . . . Cannons 3 | . . . . . . . . . . . . . . . . . . . . . . . . . . 2 . . . 1 . . . . . . . . . . AOE 43 | . . . 6 6 . . 8 . . . . . . 1 . . . 2 3 . . . . . 5 . . . 1 4 . . 4 . . . . . 3 . Classes Destroyed 16 | . 5 . 4 1 . . 1 2 . . . . . . . . . . . . . . . . . . . . 2 1 . . . . . . . . . . Worker 11 | . . . . 2 . . 1 . . . . . . . . . . . 2 . . . . . 2 . . . 2 . . . 1 . . . . . 1 . Builder 8 | . . . 2 . . . . . . . 2 . . . . . . . . . . . . . 1 1 . . 1 . . . . . . . . . 1 . Tunneler 4 | . . . 1 . . . . . . . . . . . . . . . . . . . . . . . . . 2 . . . 1 . . . . . . . Hauler 8 | . 2 . . . . . 1 . . . 1 . . . . . . . . . . . . . . . . . 2 . 1 . . . . . . . 1 . Recycler 6 | . . . 2 . . 1 1 . . . . . . . . . . . . . . . . . . 1 . . . . . . . . . . . . 1 . Mechanic 1 | . 1 . . . . . . . . . . . . . . . . . . . . . . . . . . . . . . . . . . . . . . . Operator 15 | . . . 1 . . . . . 1 . . . 2 . . . . . . . . . . . . . . 9 1 . 1 . . . . . . . . . Watcher 15 | . 1 . 1 . . . . . . 1 2 . . 1 . . . . 1 . . . . . 1 3 . . . . 1 . . . . . 2 . . 1 Swarmer 43 | . 3 . 6 7 . . 7 . . . . . . . . . . 3 3 . . . . . 3 . . . . 4 . . 4 3 . . . . . . Cutter 7 | . . . . . . . 2 . . . . . . . . . . . . . . . . . 2 . . . . . . . . . . . . . 3 . Grunt 25 | . 5 . . . . . 1 7 . . . . . 1 . . . 1 . . . . . . 2 . . . . 2 . . . 3 . 2 . . 1 . Brawler 2 | . . . . . . . . . . . . . . . . . . . . . . . . . . . . . 1 1 . . . . . . . . . . Duelist 1 | . . . . . . . . . . . . . . . . . . . . . . . . . . . . . 1 . . . . . . . . . . . Sentry 7 | . . . . . . . . 2 . 1 . . . . . . . 1 . . . . . . . 2 . . . . . 1 . . . . . . . . Hunter 4 | . . . . . . . . 1 . . . . . 1 . . . . . . . . . . . . . . 2 . . . . . . . . . . . Programmer 7 | . . . . . . . . . . . . . . . . . . . . . . . . . . . . . . 2 . 1 . . . 3 . . 1 . Enhanced Grunt 2 | . . . . . . . . . . . . . . . . . . . . . . . . . . . . . 2 . . . . . . . . . . . Thug 1 | . . . . 1 . . . . . . . . . . . . . . . . . . . . . . . . . . . . . . . . . . . . Guerrilla 1 | . . . . . . . . . . . . . . . . . . . . . . . . . . . . . 1 . . . . . . . . . . . Best Kill Streak 10 | . 6 . 10 5 . 1 5 4 1 1 1 . 1 2 . . . 3 6 . . . . . 4 3 . 4 9 4 1 1 6 3 . 2 1 . 4 1 Combat Bots Only 6 | . 3 . 6 4 . . 4 4 . 1 . . . 2 . . . 3 3 . . . . . 3 2 . . 2 4 . 1 4 3 . 2 . . 3 . Max Kills in Single Turn 11 | . 1 . 3 3 . 1 2 1 1 1 1 . 1 1 . . . 2 3 . . . . . 4 2 . 1 11 3 1 1 4 1 . 1 1 . 4 1 Gunslinging . | . . . . . . . . . . . . . . . . . . . . . . . . . . . . . . . . . . . . . . . . . Exploded 3 | . . . 2 3 . . 2 . . . . . . 1 . . . 2 3 . . . . . 3 . . . 1 3 . . 2 . . . . . 3 . Melee 1 | . . . . 1 . . 1 1 . 1 . . . 1 . . . . . . . . . . 1 . . . . 1 . 1 . 1 . 1 . . 1 . Uniques/NPCs Destroyed 1 | . . . . . . . . . . . . . . . . . . . . . . . . . . . . . . . 1 . . . . . . . . . Revision 17++ (-3/Research) Combat | -11 -10 -10 -9 -9 -9 -8 -8 -8 -8 -8 -7 -7 -7 -7 -6 -6 -6 -6 -5 -5 -5 -5 -4 -4 -4 -4 -4 -4 -4 -4 -3 -3 -2 -2 -2 -2 -1 -1 -1 -1 -------- Run | Yrd Mat Min Mat Min Exi Min Mat Gar Mat Gar Fac Was Fac Gar Fac Was Fac Gar Fac Was Fac Gar Fac Gar Fac Ext Cet Arc Hub Gar Res Gar Res Gar Res Gar Acc Gar Acc Com Hostile Shots Fired 624 | . 60 1 21 19 . . 31 20 5 7 . . 18 12 . . 33 33 32 . 12 2 9 40 23 24 4 . 15 27 4 9 7 17 3 28 . 14 61 33 Missed 255 | . 18 1 13 9 . . 9 9 5 3 . . 14 4 . . 7 20 7 . 8 1 3 16 11 10 1 . 6 9 3 5 4 5 2 11 . 7 28 6 Hits 369 | . 42 . 8 10 . . 22 11 . 4 . . 4 8 . . 26 13 25 . 4 1 6 24 12 14 3 . 9 18 1 4 3 12 1 17 . 7 33 27 Melee 17 | . . . . . . . 3 . . . . . . . . . . . . . . . . . 6 . . . 4 . . . . . . . . . 4 . Projectile 352 | . 42 . 8 10 . . 19 11 . 4 . . 4 8 . . 26 13 25 . 4 1 6 24 6 14 3 . 5 18 1 4 3 12 1 17 . 7 29 27 AOE 13 | . . . . . . . 2 . . . . . . . . . . . . . 2 . . . 1 . . . . . . . . . . . . . . 8 Critical Strikes 40 | . 1 . . . . . 2 . . 1 . . . 2 . . 6 1 8 . . . 1 . 3 . 1 . 1 1 . . . . . 2 . . 5 5 Actively Blocked 15 | . . . . . . . . . . . . . . . . . . . . . . . . . 2 . 1 . 1 1 . . . . . 2 . . 3 5 Part Disruptions 1 | . . . . . . . . . . . . . . . . . . . . . . . . . . . . . . . . . . . . . . . 1 . Damage Taken 8485 | . 444 . 85 133 . . 299 155 . 61 . . 22 137 . . 481 165 561 20 144 24 108 521 340 429 55 . 314 407 56 72 56 289 26 285 . 119 1246 1431 Core 4087 | . 132 . 10 52 . . 47 54 . 30 . . 5 35 . . 258 38 388 10 14 . 60 264 108 195 12 . 171 310 22 . 37 87 . 138 . 29 558 1023 Absorbed by Shields 254 | . . . . . . . . . . . . . . 11 . . . . . . . . . . . 21 51 . 19 11 . . . . . 132 . 9 . . Redirected to Shielding 226 | . . . . . . . . . . . . . . . . . . . . . . . . . . . . . . . . . . 76 . 59 . . 91 . Regen/Repaired (Parts) 397 | . . . . . . . . . . . 50 . . . . . . . . 60 76 . 57 . 35 . . . . . . . 22 . 97 . . . . . Core Remaining (%) 70 | 100 . 47 . . . 84 . . . 76 . . . 94 . . . 65 . . . 58 . . . . . . . 2 . 98 . . . 81 . . . . Volleys Fired 443 | . 59 . 8 5 . . 10 . . . . . . 1 . . 1 23 11 . 9 34 28 35 16 21 8 10 6 30 9 11 4 29 . 18 4 16 27 10 Largest 2 | . 2 . 2 1 . . 1 . . . . . . 1 . . 1 1 1 . 1 1 1 1 1 1 1 1 1 2 1 1 1 1 . 1 1 1 1 1 Hottest 150 | . 40 . 43 33 . . 33 . . . . . . 39 . . 44 94 94 . 94 120 120 120 120 120 120 80 120 150 120 120 120 120 . 120 10 10 120 120 Shots Fired 506 | . 116 . 12 5 . . 10 . . . . . . 1 . . 1 23 11 . 9 34 28 35 16 21 8 10 6 32 9 11 4 29 . 18 4 16 27 10 Gun 190 | . 116 . 8 . . . . . . . . . . . . . . 19 8 . 9 9 . . . . 5 10 . 6 . . . . . . . . . . Cannon 106 | . . . . . . . . . . . . . . . . . 1 3 . . . 7 10 10 2 9 1 . 6 14 2 3 1 20 . 3 . . 7 7 Launcher 29 | . . . 4 5 . . 10 . . . . . . 1 . . . 1 3 . . . . . . . . . . 2 . . 2 . . . . . 1 . Special 181 | . . . . . . . . . . . . . . . . . . . . . . 18 18 25 14 12 2 . . 10 7 8 1 9 . 15 4 16 19 3 Kinetic 134 | . 116 . 8 . . . . . . . . . . . . . 1 3 . . . . . . . . . . . 6 . . . . . . . . . . Thermal 162 | . . . . . . . . . . . . . . . . . . 19 8 . 9 16 10 10 2 9 6 10 6 14 2 3 1 20 . 3 . . 7 7 Explosive 29 | . . . 4 5 . . 10 . . . . . . 1 . . . 1 3 . . . . . . . . . . 2 . . 2 . . . . . 1 . Electromagnetic . | . . . . . . . . . . . . . . . . . . . . . . . . . . . . . . . . . . . . . . . . . Robot Hit Streak 16 | . 12 . 2 . . . 1 . . . . . . . . . . 4 10 . 1 8 10 8 14 16 11 2 . 11 15 10 11 16 . 5 9 15 11 3 Robot Miss Streak 8 | . 3 . 1 1 . . 3 . . . . . . . . . . 1 . . 2 2 2 5 1 1 1 4 5 8 1 . . 1 . 1 . 1 1 1 Penetration Max . | . . . . . . . . . . . . . . . . . . . . . . . . . . . . . . . . . . . . . . . . . Secondary Targets . | . . . . . . . . . . . . . . . . . . . . . . . . . . . . . . . . . . . . . . . . . Shots Hit Robots 522 | . 77 . 9 3 4 2 9 30 1 13 12 . 6 2 3 . 3 13 14 1 9 15 15 22 20 37 6 18 2 35 13 16 1 27 . 27 6 14 31 6 Core Hits 203 | . 25 . 18 9 . 1 18 13 . 4 4 . 2 3 . . . 10 7 . . . 1 . 11 3 . 6 15 17 . 2 7 6 . 5 2 . 13 1 Critical Kills 1 | . . . . . . . . . . . . . . . . . . . . . . . . . 1 . . . . . . . . . . . . . . . Critical Parts Destroyed 10 | . 1 . 2 1 . . . . . . . . . . . . . . . . . . . . 1 . . . . . 3 . . 2 . . . . . . Critical Strikes 25 | . 1 . 2 1 . . 2 5 . . . . . . . . . . . . . . . . 2 . . . . 2 3 2 . 3 . 2 . . . . Destroy 1 | . 1 . . . . . . . . . . . . . . . . . . . . . . . . . . . . . . . . . . . . . . . Smash 10 | . . . 2 1 . . . . . . . . . . . . . . . . . . . . 2 . . . . . 3 . . 2 . . . . . . Sever 12 | . . . . . . . 2 5 . . . . . . . . . . . . . . . . . . . . . . . 2 . 1 . 2 . . . . Impale 2 | . . . . . . . . . . . . . . . . . . . . . . . . . . . . . . 2 . . . . . . . . . . Melee Attacks 559 | . . . 6 6 4 2 16 73 10 52 21 . 12 29 7 . 4 7 8 1 7 . 2 8 23 23 . 20 4 34 25 12 15 32 5 31 4 3 40 13 Impact 91 | . . . 6 6 . . . . . . . . . . . . . . . . . . 2 8 22 8 . . . . 13 . . 3 2 4 . . 9 8 Slashing 346 | . . . . . . 2 16 73 10 50 15 . 9 29 3 . 1 . . . . . . . . . . 20 2 . 2 12 15 29 3 27 4 3 21 . Piercing 45 | . . . . . . . . . . . . . . . . . . . . . . . . . . . . . 1 34 10 . . . . . . . . . Sneak Attacks 100 | . . . 3 2 4 1 2 2 . 2 9 . . 1 3 . 3 3 5 . 7 . . . . 13 . 9 1 3 6 4 . 5 . 4 . . 8 . Combat Hostiles 3 | . . . . . . . . 1 . 1 . . . . . . . . 1 . . . . . . . . . . . . . . . . . . . . . Follow-up Attacks 3 | . . . . . . . . 2 . . . . . . . . . . . . . . . . . . . . . . . . . . . 1 . . . . Damage Inflicted 21743 | . 695 . 801 632 . 164 1077 1733 81 1009 478 . 175 198 . . . 267 879 . 71 . 129 225 1363 534 122 1409 1535 1916 932 591 501 1906 . 1054 138 . 1083 45 Guns 1470 | . 695 . 73 . . . . . . . . . . . . . . 171 167 . 71 . . . . . 122 98 . 73 . . . . . . . . . . Cannons 828 | . . . . . . . . . . . . . . . . . . . . . . . 129 225 . 335 . . 43 96 . . . . . . . . . . Explosions 6295 | . . . 509 471 . . 593 . . . . . . 55 . . . 96 712 . . . . . 1079 . . . 1461 449 . . 501 . . . . . 369 . Melee 13132 | . . . 219 161 . 164 484 1733 81 1009 478 . 175 143 . . . . . . . . . . 284 188 . 1311 24 1298 932 591 . 1906 . 1054 138 . 714 45 Ramming 18 | . . . . . . . . . . . . . . . . . . . . . . . . . . 11 . . 7 . . . . . . . . . . . Kinetic 841 | . 695 . 73 . . . . . . . . . . . . . . . . . . . . . . . . . . 73 . . . . . . . . . . Thermal 1612 | . . . . . . . . . . . . . . . . . . 171 167 . 71 . 129 225 155 335 122 98 43 96 . . . . . . . . . . Explosive 4679 | . . . 509 471 . . 593 . . . . . . 55 . . . 96 712 . . . . . 924 . . . . 449 . . 501 . . . . . 369 . Electromagnetic 1461 | . . . . . . . . . . . . . . . . . . . . . . . . . . . . . 1461 . . . . . . . . . . . Impact 2430 | . . . 219 161 . . . . . . . . . . . . . . . . . . . . 284 188 . . . . 932 . . 286 . 51 . . 264 45 Slashing 9404 | . . . . . . 164 484 1733 81 1009 478 . 175 143 . . . . . . . . . . . . . 1311 24 . . 591 . 1620 . 1003 138 . 450 . Piercing 1298 | . . . . . . . . . . . . . . . . . . . . . . . . . . . . . . 1298 . . . . . . . . . . Highest Corruption 8 | . 2 2 . . . . . . . . . 1 1 1 . 6 8 . . . . . . 1 1 1 . . . 1 . . . . . 4 . . 3 8 Average Corruption 2 | . 2 2 . . . . . . . . . 1 1 1 . 6 6 . . . . . . 1 1 1 . . . 1 . . . . . 2 . . 2 3 Corruption Purged 1 | . . . . . . . . . . . . . . . . . . . . . . . . . . 1 . . . . . . . . . . . . . . Corruption Blocked 8 | . . . . . . . . . . . . 8 . . . . . . . . . . . . . . . . . . . . . . . . . . . . Effects 69 | . 8 2 . . . . . . . . . 1 1 3 . . 7 . . . . . . 8 7 . . . . 5 . . . . . 13 . . 5 9 Message Errors 17 | . 1 1 . . . . . . . . . . 1 . . . 4 . . . . . . 1 . . . . . 2 . . . . . 4 . . 1 2 Matter Fused 18 | . 1 . . . . . . . . . . . . 2 . . 2 . . . . . . 2 3 . . . . 1 . . . . . 1 . . 2 4 Heat Flow Errors 3 | . 1 . . . . . . . . . . . . . . . . . . . . . . . . . . . . 1 . . . . . . . . . 1 Energy Discharges 5 | . 1 . . . . . . . . . . . . 1 . . . . . . . . . 2 . . . . . . . . . . . . . . . 1 Parts Rejected 2 | . . . . . . . . . . . . 1 . . . . . . . . . . . . . . . . . . . . . . . . . . 1 . Data Loss (minor) 12 | . . . . . . . . . . . . . . . . . 1 . . . . . . 2 3 . . . . 1 . . . . . 4 . . 1 . Data Loss (major) 5 | . . . . . . . . . . . . . . . . . . . . . . . . 1 1 . . . . . . . . . . 2 . . . 1 Misfires 1 | . 1 . . . . . . . . . . . . . . . . . . . . . . . . . . . . . . . . . . . . . . . Alerts 3 | . . 1 . . . . . . . . . . . . . . . . . . . . . . . . . . . . . . . . . 2 . . . . Weapon Failures 3 | . 3 . . . . . . . . . . . . . . . . . . . . . . . . . . . . . . . . . . . . . . . Overload Shots . | . . . . . . . . . . . . . . . . . . . . . . . . . . . . . . . . . . . . . . . . . Overflow Damage 3614 | . . . 194 80 . . 30 210 46 213 60 . 37 . . . . . 9 . . . 16 15 209 112 . 619 100 366 544 52 26 553 . 60 . . 63 . Projectiles 58 | . . . . . . . . . . . . . . . . . . . . . . . 16 15 . 27 . . . . . . . . . . . . . . Explosions 351 | . . . 5 9 . . 30 . . . . . . . . . . . 9 . . . . . 80 . . . 100 92 . . 26 . . . . . . . Melee 3205 | . . . 189 71 . . . 210 46 213 60 . 37 . . . . . . . . . . . 129 85 . 619 . 274 544 52 . 553 . 60 . . 63 . Knockbacks 14 | . . . . . . . . . . . . . . . . . . . . . . . . . 2 3 . . . . 6 . . . . . . . 3 . Impact 12 | . . . . . . . . . . . . . . . . . . . . . . . . . 2 2 . . . . 6 . . . . . . . 2 . Kinetic . | . . . . . . . . . . . . . . . . . . . . . . . . . . . . . . . . . . . . . . . . . Secondary 2 | . . . . . . . . . . . . . . . . . . . . . . . . . . 1 . . . . . . . . . . . . 1 . Self-Inflicted Damage 299 | . . . . 46 . . . . . . . . . 17 . . . . 63 . . . . . . 5 . . 91 . . . . . . . . . 77 . Shots 5 | . . . . 1 . . . . . . . . . 1 . . . . 1 . . . . . . . . . 1 . . . . . . . . . 1 . Rammed 4 | . . . . . . . . . . . . . . . . . . . . . . . . . . 2 . . 2 . . . . . . . . . . . Targets Rammed 4 | . . . . . . . . . . . . . . . . . . . . . . . . . . 2 . . 2 . . . . . . . . . . . Kicked . | . . . . . . . . . . . . . . . . . . . . . . . . . . . . . . . . . . . . . . . . . Crushed . | . . . . . . . . . . . . . . . . . . . . . . . . . . . . . . . . . . . . . . . . . Highest Temperature 240 | . 104 . 2 . . . . . . 5 . . . 18 . . . 136 84 . 73 112 184 70 46 184 34 . 104 216 76 72 36 240 . 30 . . 80 114 Average Temperature 45 | . 14 . 2 . . . . . . 5 . . . 15 . . . 50 32 . 37 41 74 32 27 65 25 . 47 65 38 38 27 58 . 18 . . 36 33 Received Heat Transfer 694 | . 186 . 9 6 . . 18 54 . 36 . . . 87 . . 12 24 45 . 9 9 9 36 12 33 . . . 12 12 . 9 9 . . . 22 9 36 Siege Activations . | . . . . . . . . . . . . . . . . . . . . . . . . . . . . . . . . . . . . . . . . . Martial Activations . | . . . . . . . . . . . . . . . . . . . . . . . . . . . . . . . . . . . . . . . . . Shielding Activations . | . . . . . . . . . . . . . . . . . . . . . . . . . . . . . . . . . . . . . . . . . Robots Disrupted . | . . . . . . . . . . . . . . . . . . . . . . . . . . . . . . . . . . . . . . . . . Combat Hostiles . | . . . . . . . . . . . . . . . . . . . . . . . . . . . . . . . . . . . . . . . . . Robots Corrupted 14 | . . . . . . . . . . . . . . . . . . . . . . . . . 2 4 . . 3 . 4 . . 1 . . . . . . Combat Hostiles 3 | . . . . . . . . . . . . . . . . . . . . . . . . . 1 . . . 1 . . . . 1 . . . . . . Parts Fried 26 | . . . 5 . . . . . . . . . . . . . . . . . . . . . . 6 . . 9 . 4 . . 2 . . . . . . Impact Corruptions 34 | . . . 6 2 . . . . . . . . . . . . . . . . . . . . 4 4 . . . . 13 . . 2 . 1 . . 2 . Robots Melted . | . . . . . . . . . . . . . . . . . . . . . . . . . . . . . . . . . . . . . . . . . Combat Hostiles . | . . . . . . . . . . . . . . . . . . . . . . . . . . . . . . . . . . . . . . . . . Parts Melted 2 | . . . . . . . . . . . . . . . . . . 1 . . . . . . . 1 . . . . . . . . . . . . . . Heat Transferred 1449 | . . . . . . . . . . . . . . . . . . 222 129 . 74 . 111 147 100 296 148 111 37 74 . . . . . . . . . . Parts Sabotaged . | . . . . . . . . . . . . . . . . . . . . . . . . . . . . . . . . . . . . . . . . . Parts Stolen . | . . . . . . . . . . . . . . . . . . . . . . . . . . . . . . . . . . . . . . . . . Parts Stripped . | . . . . . . . . . . . . . . . . . . . . . . . . . . . . . . . . . . . . . . . . . Power Chain Reactions 1 | . . . . . . . . . . . . . . . . . . . . . . . . . . . . . 1 . . . . . . . . . . . Alert | -11 -10 -10 -9 -9 -9 -8 -8 -8 -8 -8 -7 -7 -7 -7 -6 -6 -6 -6 -5 -5 -5 -5 -4 -4 -4 -4 -4 -4 -4 -4 -3 -3 -2 -2 -2 -2 -1 -1 -1 -1 ------- Run | Yrd Mat Min Mat Min Exi Min Mat Gar Mat Gar Fac Was Fac Gar Fac Was Fac Gar Fac Was Fac Gar Fac Gar Fac Ext Cet Arc Hub Gar Res Gar Res Gar Res Gar Acc Gar Acc Com Maximum Alert Level 4 | . . . 1 1 . . 1 3 2 2 1 . . 1 . . . 3 2 . 1 3 2 3 2 1 . . 3 4 2 . . 1 . 1 1 1 . . Low Security (%) 57 | 100 100 100 73 82 . 100 96 6 . 10 65 100 100 83 100 100 100 42 70 100 94 . . . 38 68 100 100 38 . 63 100 100 85 100 57 5 73 100 100 Level 1 17 | . . . 26 17 . . 3 10 25 44 34 . . 16 . . . 7 26 . 5 33 57 11 31 31 . . 54 . . . . 14 . 42 94 26 . . Level 2 13 | . . . . . . . . 35 74 45 . . . . . . . 20 2 . . 29 42 39 30 . . . . 22 36 . . . . . . . . . Level 3 11 | . . . . . . . . 47 . . . . . . . . . 29 . . . 37 . 49 . . . . 6 72 . . . . . . . . . . Level 4 . | . . . . . . . . . . . . . . . . . . . . . . . . . . . . . . 5 . . . . . . . . . . Level 5 . | . . . . . . . . . . . . . . . . . . . . . . . . . . . . . . . . . . . . . . . . . High Security . | . . . . . . . . . . . . . . . . . . . . . . . . . . . . . . . . . . . . . . . . . Max Security . | . . . . . . . . . . . . . . . . . . . . . . . . . . . . . . . . . . . . . . . . . Peak Influence 1164 | . 194 75 355 219 . 5 209 911 445 668 352 41 56 270 142 51 35 711 510 40 328 767 580 850 505 328 112 168 776 1164 654 74 118 205 122 381 246 230 157 79 Initial 654 | . . 75 17 41 . . . 135 443 165 350 41 21 30 141 51 28 24 367 . . 229 402 349 445 247 1 28 . 522 654 . 19 63 114 11 228 172 31 78 Average 258 | . 117 60 145 116 . . 50 611 377 388 205 36 31 110 119 46 7 382 125 10 49 567 410 619 269 127 43 86 230 876 262 36 63 114 70 174 222 150 11 19 Influence Increases 13469 | . 446 . 505 239 . 5 431 896 72 543 99 . 82 290 147 . 132 747 513 84 514 598 417 681 864 560 224 255 1148 802 176 143 289 312 115 470 67 131 404 68 Destroy 0b10 Robot/C 4130 | . 160 . 120 140 . . 200 320 . 40 . . . 60 80 . 40 340 200 . 220 155 150 270 225 240 90 60 225 300 . 30 60 90 45 165 . 30 75 . Destroy 0b10 Robot/NC 434 | . 20 . 35 10 . 5 15 10 5 25 25 . 10 5 . . . . 35 . 10 4 12 4 28 20 8 36 36 20 12 . 8 8 . . 8 . 16 4 Destroy Leader 556 | . 36 . 22 20 . . 32 . . 10 6 . . . 20 . . 30 46 . 50 10 34 8 58 30 . . 52 32 4 . 8 . 16 8 4 8 10 2 Allied During Kill 1617 | . . . . . . . . 75 . 4 . . . 2 16 . 4 120 65 . 188 17 120 192 38 127 82 93 245 147 . 3 . . 6 39 2 32 . . Trap Triggered on 0b10 202 | . . . . . . . . . . 50 . . 10 . . . 10 . 10 . . 10 . 16 . 32 . . . 56 8 . . . . . . . . . Successful Hack 707 | . 65 . 24 . . . 3 12 30 12 46 . 11 24 13 . 46 44 15 . 26 12 7 9 37 19 . . 10 17 72 6 36 . 24 14 24 20 . 29 Select Force Hacks 53 | . 30 . . . . . . . . . . . . . . . . . . . . . . . . . . . . . . . . . . . 23 . . . Disable Machine 591 | . . . . . . . 30 75 . 75 . . . . . . . . 15 . . . 12 12 96 . 12 48 108 12 12 24 . 12 . . . . 36 12 Anti-Garrison Action 1710 | . . . . . . . . 300 . 200 . . . 100 . . . 150 . . . 352 . 114 . . . . . 114 . 38 . 114 . 190 . 38 . . Destroy Structure 2035 | . . . 34 39 . . 46 104 7 67 7 . 6 54 3 . 2 63 112 84 20 23 34 32 274 8 32 18 448 80 20 6 81 28 12 54 6 3 207 21 Partial Spotted 363 | . . . 60 . . . 30 . 15 45 15 . . . 15 . 15 . . . . . 24 . . 60 . . 24 12 . . 12 24 . . . . 12 . Lose Combat Pursuer 1071 | . 135 . 210 30 . . 75 . 15 15 . . 45 45 . . 15 . 15 . . 15 24 24 108 24 . . . 12 48 36 84 36 12 . . . 48 . Influence Decreases 13469 | . 252 149 443 166 180 5 222 194 728 130 648 88 70 63 269 107 138 81 1214 84 186 159 685 330 1209 1061 156 327 402 384 1340 108 240 191 305 104 233 293 334 191 Entered New Map 4481 | . . 119 28 66 180 . . 74 468 90 318 78 10 13 129 97 13 11 334 . . 99 365 150 405 258 3 44 . 224 510 . 16 21 91 4 153 43 22 45 Time Decay 4417 | . 212 30 285 100 . 5 182 . 110 . 180 10 60 . 80 10 81 . 259 56 76 . 150 . 374 478 153 263 172 . 264 . 214 . 150 . 80 . 237 146 Search Patrol Dispatched 100 | . . . 100 . . . . . . . . . . . . . . . . . . . . . . . . . . . . . . . . . . . . . Lost Part 596 | . 40 . 20 . . . 40 . . . . . . 30 . . . 30 61 . 20 . . 80 30 50 . . 20 40 . 10 10 30 . 20 . 20 45 . Lost Ally 2409 | . . . 10 . . . . 120 . 40 . . . 20 60 . 44 40 260 28 90 60 170 100 250 275 . 20 60 120 . 98 . 140 64 80 . 230 30 . Purge Threat 1466 | . . . . . . . . . 150 . 150 . . . . . . . 300 . . . . . 150 . . . 150 . 566 . . . . . . . . . Squads Dispatched 80 | . 3 . . 2 . . 4 . 1 . 4 . 3 . 4 . 3 . 8 . 4 . 6 . 8 . . . 5 . 8 . 2 . 2 . 1 . 11 1 Investigation 35 | . 3 . . 1 . . 2 . . . 2 . 2 . 3 . 2 . 5 . 2 . . . 3 . . . 1 . 6 . 1 . 1 . 1 . . . Extermination 17 | . . . . . . . . . . . 1 . . . . . 1 . 1 . 1 . . . 3 . . . . . 1 . 1 . 1 . . . 6 1 Reinforcement 17 | . . . . . . . 2 . 1 . 1 . 1 . . . . . 2 . . . 3 . 2 . . . 2 . 1 . . . . . . . 2 . Assault 5 | . . . . 1 . . . . . . . . . . . . . . . . . . 2 . . . . . . . . . . . . . . . 2 . Garrison 6 | . . . . . . . . . . . . . . . 1 . . . . . 1 . 1 . . . . . 2 . . . . . . . . . 1 . Intercept . | . . . . . . . . . . . . . . . . . . . . . . . . . . . . . . . . . . . . . . . . . Searches Triggered 1 | . . . 1 . . . . . . . . . . . . . . . . . . . . . . . . . . . . . . . . . . . . . Unchained Authorized 5 | . . . . . . . . . . . . . . . . . 1 . 1 . . . . . . . . . . . . . . . 1 . 1 . 1 . Construction Impeded 1 | . . . . . . . . . . . . . . . . . . . 1 . . . . . . . . . . . . . . . . . . . . . Haulers Reinforced 4 | . . . . . . . . . . . 1 . . . . . . . . . . . 1 . . . . . 1 . 1 . . . . . . . . . Active Scanning Responses . | . . . . . . . . . . . . . . . . . . . . . . . . . . . . . . . . . . . . . . . . . Cargo Convoy Interrupts . | . . . . . . . . . . . . . . . . . . . . . . . . . . . . . . . . . . . . . . . . . Alert ID Control Effect 23 | . . . . . . . . . . . . . . . . . . . . . . . . . . . . . . . . 2 . 1 . 7 . 11 2 . Stealth | -11 -10 -10 -9 -9 -9 -8 -8 -8 -8 -8 -7 -7 -7 -7 -6 -6 -6 -6 -5 -5 -5 -5 -4 -4 -4 -4 -4 -4 -4 -4 -3 -3 -2 -2 -2 -2 -1 -1 -1 -1 --------- Run | Yrd Mat Min Mat Min Exi Min Mat Gar Mat Gar Fac Was Fac Gar Fac Was Fac Gar Fac Was Fac Gar Fac Gar Fac Ext Cet Arc Hub Gar Res Gar Res Gar Res Gar Acc Gar Acc Com Distress Signals 37 | . 1 . 2 . . . . . 3 . . . . . . . . . 1 . 1 1 1 . 5 1 2 . . . 11 . 2 . 3 . . . 3 . Communications Jammed 113 | . . . . . . . . . . . . . . . . . 2 . 2 . 2 . 14 . . 11 1 . 2 . 10 . 5 . 15 . . . 32 17 Distress Signals 112 | . . . . . . . . . . . . . . . . . 2 . 2 . 2 . 14 . . 11 1 . 1 . 10 . 5 . 15 . . . 32 17 Times Spotted 496 | . 26 1 23 8 . . 13 18 10 5 3 6 6 6 1 6 6 28 22 1 10 10 24 22 24 23 13 23 12 16 11 10 11 11 7 12 3 14 36 15 Peak Tracking Total 13 | . 6 1 9 5 . . 7 5 7 3 1 6 3 3 1 6 3 8 7 1 6 3 13 5 9 4 5 1 4 5 5 5 5 5 4 3 1 4 11 6 Tactical Retreats 48 | . 4 . 7 1 . . 3 . 1 1 . . 2 1 . . 1 . 1 . . 1 2 1 6 2 . . . 1 2 2 3 2 1 . . . 3 . Traps | -11 -10 -10 -9 -9 -9 -8 -8 -8 -8 -8 -7 -7 -7 -7 -6 -6 -6 -6 -5 -5 -5 -5 -4 -4 -4 -4 -4 -4 -4 -4 -3 -3 -2 -2 -2 -2 -1 -1 -1 -1 ------- Run | Yrd Mat Min Mat Min Exi Min Mat Gar Mat Gar Fac Was Fac Gar Fac Was Fac Gar Fac Was Fac Gar Fac Gar Fac Ext Cet Arc Hub Gar Res Gar Res Gar Res Gar Acc Gar Acc Com Traps Triggered 44 | . 2 . . . . . . 5 . 2 2 . 1 4 1 . 1 . 1 . . 1 . 3 2 2 . . 2 4 . . 1 4 . 2 . . 1 3 Indirectly 1 | . . . . . . . . . . . . . . . . . . . . . . . . . . . . . 1 . . . . . . . . . . . Trap Hack Attempts 33 | . . . . . . . . . . . . . . . 2 . . . . . 20 . . . . 11 . . . . . . . . . . . . . . Triggered 2 | . . . . . . . . . . . . . . . . . . . . . 1 . . . . 1 . . . . . . . . . . . . . . Disarmed 3 | . . . . . . . . . . . . . . . . . . . . . 2 . . . . 1 . . . . . . . . . . . . . . Reprogrammed 38 | . . . . . . . . . . . . . . . 1 . . . 6 . 4 . . . 15 4 . . . . 8 . . . . . . . . . Reused 24 | . . . . . . . . . . 5 . . . . . . 2 . 2 . . 1 . 2 . 4 . . . 7 1 . . . . . . . . . Traps Extracted 16 | . . . . . . . . . . . . . . . . . 2 . 3 . 4 1 . 1 4 1 . . . . . . . . . . . . . . Installed 38 | . . . . . . . . . . 6 . . . . . . 4 . 4 . . 2 . 3 . 5 . . . 14 . . . . . . . . . . Triggered 23 | . . . . . . . . . . 5 . . 1 . . . 1 . 1 . . 1 . 2 . 4 . . . 7 1 . . . . . . . . . Most Traps Carried 10 | . . . . . . . . 6 6 10 9 9 9 9 9 9 9 7 6 5 9 9 8 8 10 10 6 6 6 6 4 . . . . . . . . . Objects Rigged 13 | . . . . . . . . . . . 7 . . . . . . . . . . . . . 6 . . . . . . . . . . . . . . . Exploded 3 | . . . . . . . . . . . . . . . . . . . . . . . . . 3 . . . . . . . . . . . . . . . Machines | -11 -10 -10 -9 -9 -9 -8 -8 -8 -8 -8 -7 -7 -7 -7 -6 -6 -6 -6 -5 -5 -5 -5 -4 -4 -4 -4 -4 -4 -4 -4 -3 -3 -2 -2 -2 -2 -1 -1 -1 -1 ---------- Run | Yrd Mat Min Mat Min Exi Min Mat Gar Mat Gar Fac Was Fac Gar Fac Was Fac Gar Fac Was Fac Gar Fac Gar Fac Ext Cet Arc Hub Gar Res Gar Res Gar Res Gar Acc Gar Acc Com Machines Disabled 79 | . . . . . . . 2 9 . 7 . . . 3 . . . 3 1 . . 4 1 4 8 . 1 4 9 5 1 3 . 4 . 5 . 1 3 1 Max in Single Turn 8 | . . . . . . . 1 1 . 1 . . . 1 . . . 1 1 . . 1 . 1 3 . 1 1 8 1 1 1 . 1 . 1 . 1 1 1 Garrison Access 5 | . . . . . . . . . . . 1 . . . . . . . . . . . 1 . 1 . . . 1 . . . . . . . . . 1 . Garrison Relay 31 | . . . . . . . . 4 . 2 . . . 2 . . . 3 . . . 4 . 3 . . . . . 3 . 1 . 3 . 5 . 1 . . Network Hub 2 | . . . . . . . . . . . . . . . . . . . . . . . . . . . . . 2 . . . . . . . . . . . Energy Cycler 1 | . . . . . . . . . . . . . . . . . . . . . . . . . . . . . . . . . . . . . . . 1 . Machines Repaired . | . . . . . . . . . . . . . . . . . . . . . . . . . . . . . . . . . . . . . . . . . Machines Dismantled . | . . . . . . . . . . . . . . . . . . . . . . . . . . . . . . . . . . . . . . . . . Machines Sabotaged . | . . . . . . . . . . . . . . . . . . . . . . . . . . . . . . . . . . . . . . . . . Overloaded Fab Kills . | . . . . . . . . . . . . . . . . . . . . . . . . . . . . . . . . . . . . . . . . . Hacking | -11 -10 -10 -9 -9 -9 -8 -8 -8 -8 -8 -7 -7 -7 -7 -6 -6 -6 -6 -5 -5 -5 -5 -4 -4 -4 -4 -4 -4 -4 -4 -3 -3 -2 -2 -2 -2 -1 -1 -1 -1 --------- Run | Yrd Mat Min Mat Min Exi Min Mat Gar Mat Gar Fac Was Fac Gar Fac Was Fac Gar Fac Was Fac Gar Fac Gar Fac Ext Cet Arc Hub Gar Res Gar Res Gar Res Gar Acc Gar Acc Com Machines Accessed 190 | . 9 . 9 2 2 . 8 3 10 2 11 . 4 3 7 . 10 2 12 . 9 4 5 1 16 13 1 . 7 1 12 1 8 1 5 2 3 3 . 4 Terminals 109 | . 7 . 7 . . . 5 3 7 2 3 . 3 3 3 . 4 2 5 . 2 4 . 1 8 12 1 . 5 1 6 1 2 1 2 2 . 3 . 4 Fabricators 22 | . . . . . . . . . . . 3 . . . 2 . 3 . 5 . 3 . 1 . 2 . . . . . 2 . 1 . . . . . . . Repair Stations 18 | . 1 . 1 . . . . . 1 . 2 . . . . . . . . . 2 . 2 . 3 1 . . . . 1 . 2 . 1 . 1 . . . Recycling Units 12 | . 1 . . . . . 1 . . . 1 . . . 1 . 1 . 1 . 1 . . . 1 . . . . . 1 . 2 . . . 1 . . . Scanalyzers 9 | . . . 1 . . . 1 . 1 . 1 . . . . . 1 . 1 . . . . . 1 . . . . . 1 . . . 1 . . . . . Garrison Access 16 | . . . . . . . 1 . 1 . 1 . 1 . 1 . 1 . . . 1 . 2 . 1 . . . 2 . 1 . 1 . 1 . 1 . . . Total Hacks 750 | . 30 . 42 2 5 . 44 7 70 7 51 . 13 9 38 . 32 9 52 . 20 10 15 2 52 34 3 . 24 7 71 6 28 1 16 10 13 10 . 17 Successful 508 | . 16 . 28 2 5 . 31 3 38 1 34 . 12 2 23 . 27 5 41 . 17 3 15 1 39 23 . . 20 3 55 4 24 1 14 4 9 5 . 3 Failed 236 | . 13 . 13 . . . 13 4 32 6 17 . 1 7 14 . 5 3 11 . 3 7 . 1 12 11 3 . 4 4 15 2 4 . 2 6 4 5 . 14 Catastrophic 30 | . 1 . 2 . . . 2 1 4 3 2 . . 2 2 . . 1 . . 2 . . . . 1 . . . 1 . 1 . . 1 . . . . 4 Database Lockouts 6 | . 1 . 1 . . . . . . . . . . . 1 . . 1 . . . . . . 1 . . . . . 1 . . . . . . . . . Manual 395 | . 13 . 23 . 1 . 22 2 43 4 28 . 9 8 24 . 14 8 24 . 7 8 4 2 14 19 1 . 13 7 39 6 10 . 6 9 7 8 . 12 Terminals 484 | . 26 . 40 . . . 23 7 59 7 16 . 10 9 18 . 13 9 26 . 5 10 . 2 27 32 3 . 21 7 53 6 9 1 8 10 . 10 . 17 Fabricators 101 | . . . . . . . . . . . 19 . . . 14 . 12 . 19 . 8 . 7 . 8 . . . . . 7 . 7 . . . . . . . Repair Stations 37 | . 2 . 1 . . . . . 2 . 6 . . . . . . . . . 4 . 4 . 6 2 . . . . 1 . 3 . 4 . 2 . . . Recycling Units 45 | . 2 . . . . . 8 . . . 3 . . . 3 . 3 . 4 . 2 . . . 2 . . . . . 5 . 7 . . . 6 . . . Scanalyzers 36 | . . . 1 . . . 5 . 8 . 5 . . . . . 2 . 3 . . . . . 8 . . . . . 3 . . . 1 . . . . . Garrison Access 40 | . . . . . . . 8 . 1 . 2 . 3 . 3 . 2 . . . 1 . 4 . 1 . . . 3 . 2 . 2 . 3 . 5 . . . Terminal Hacks 204 | . 13 . 15 2 5 . 8 3 16 1 4 . 5 2 7 . 6 5 16 . 2 3 . 1 16 14 . . 12 3 25 4 5 1 4 3 . 3 . . Record 4 | . . . . . 4 . . . . . . . . . . . . . . . . . . . . . . . . . . . . . . . . . . . Part Schematic 16 | . 1 . 1 . . . . . 2 . . . . . 1 . . 1 2 . . . . . . 2 . . . . 4 1 1 . . . . . . . Robot Schematic 5 | . . . . . . . . . . . . . 1 . . . 1 . . . . 1 . . . . . . . . 2 . . . . . . . . . Robot Analysis 8 | . . . 4 . . . . . 2 . . . . . . . . . . . . . . . . . . . 1 . . . 1 . . . . . . . Prototype ID Bank 12 | . 5 . 2 . . . 1 . . . . . 1 . . . . . . . . . . . 1 . . . . . 2 . . . . . . . . . Open Door 11 | . . . . 2 . . . 1 . . . . . . . . . . . . . 1 . . . 5 . . . . . . . 1 . . . 1 . . Open DSF 3 | . . . . . . . . . . . 1 . 1 . . . 1 . . . . . . . . . . . . . . . . . . . . . . . Level Access Points 2 | . . . . . . . . . 1 . . . . . . . . . . . . . . . . . . . 1 . . . . . . . . . . . Branch Access Points 6 | . 1 . 1 . . . 1 . . . . . . . . . 1 . 1 . . . . . 1 . . . . . . . . . . . . . . . Emergency Access Points 10 | . . . . . . . 1 1 2 . . . . . . . . 1 1 . . . . . 1 . . . 1 . 2 . . . . . . . . . Machine Index 7 | . . . . . . . . . . . . . . . . . 1 . 1 . . . . . . 1 . . 1 . 1 . 1 . 1 . . . . . Terminal Index 7 | . . . 1 . . . 1 . 1 . . . 1 . 1 . . . . . . . . . . 1 . . 1 . . . . . . . . . . . Scanalyzer Index 1 | . . . 1 . . . . . . . . . . . . . . . . . . . . . . . . . . . . . . . . . . . . . Unreport Threat 10 | . . . . . . . . . 1 . 1 . . . . . . . 2 . . . . . 1 . . . 1 . 4 . . . . . . . . . Locate Traps 21 | . 1 . 1 . . . . . 2 . 1 . . . 2 . . . 2 . 1 . . . 2 4 . . . . 2 . 1 . 2 . . . . . Reprogram Traps 7 | . . . . . . . . . . . . . . . . . . . 2 . . . . . 3 . . . . . 2 . . . . . . . . . Maintenance Status 1 | . . . . . . . . . . . . . . . . . . . 1 . . . . . . . . . . . . . . . . . . . . . Patrol Status 1 | . . . . . . . . . . . . . . . . . . . . . . . . . . 1 . . . . . . . . . . . . . . Transport Status 1 | . 1 . . . . . . . . . . . . . . . . . . . . . . . . . . . . . . . . . . . . . . . Recall Investigation 3 | . . . . . . . . . . . . . . . . . . . 3 . . . . . . . . . . . . . . . . . . . . . Recall Extermination 2 | . . . . . . . . . . . . . . . . . . . . . . . . . 1 . . . . . 1 . . . . . . . . . Recall Reinforcements 2 | . . . . . . . . . . . . . . . . . . . 1 . . . . . . . . . . . 1 . . . . . . . . . Hauler Manifests 6 | . 1 . 1 . . . . . 1 . . . . . 1 . . . . . . . . . 1 . . . . . 1 . . . . . . . . . Registered Components 9 | . 1 . 1 . . . . . 1 . 1 . . . 1 . 1 . . . . . . . 1 . . . 1 . 1 . . . . . . . . . Registered Prototypes 8 | . . . 1 . . . 1 . 1 . . . . . . . . . . . 1 . . . 1 . . . 1 . 1 . . . 1 . . . . . Zone Layout 20 | . 2 . 1 . . . 3 . 2 . . . 1 . 1 . 1 . . . . . . . 3 . . . 4 . 1 . 1 . . . . . . . Garrison Registry 8 | . . . . . . . . . . . . . . 1 . . . 1 . . . 1 . 1 . . . . . 1 . 1 . . . 1 . 1 . . Patrol Navigation 7 | . . . . . . . . 1 . 1 . . . 1 . . . 1 . . . . . . . . . . . 1 . 1 . . . 1 . . . . Security Stations 5 | . . . . . . . . . . . . . . . . . . 1 . . . . . . . . . . . 1 . 1 . . . 1 . 1 . . Proto ID Catalog 1 | . . . . . 1 . . . . . . . . . . . . . . . . . . . . . . . . . . . . . . . . . . . Fabricator Hacks 56 | . . . . . . . . . . . 6 . . . 7 . 7 . 11 . 6 . 5 . 5 . . . . . 4 . 5 . . . . . . . Network Status 9 | . . . . . . . . . . . 1 . . . 1 . 1 . 1 . 1 . 1 . 1 . . . . . 1 . 1 . . . . . . . Load Schematic 24 | . . . . . . . . . . . 3 . . . 3 . 3 . 4 . 3 . 2 . 2 . . . . . 2 . 2 . . . . . . . Build 23 | . . . . . . . . . . . 2 . . . 3 . 3 . 6 . 2 . 2 . 2 . . . . . 1 . 2 . . . . . . . Repair Station Hacks 25 | . 1 . 1 . . . . . 1 . 3 . . . . . . . . . 4 . 4 . 3 . . . . . 1 . 3 . 3 . 1 . . . Scan Component 7 | . . . . . . . . . . . 1 . . . . . . . . . 2 . 2 . . . . . . . . . 1 . 1 . . . . . Repair 7 | . . . . . . . . . . . 1 . . . . . . . . . 2 . 2 . . . . . . . . . 1 . 1 . . . . . Refit 11 | . 1 . 1 . . . . . 1 . 1 . . . . . . . . . . . . . 3 . . . . . 1 . 1 . 1 . 1 . . . Recycling Unit Hacks 13 | . 1 . . . . . 3 . . . . . . . 1 . 1 . 1 . . . . . 1 . . . . . 1 . 3 . . . 1 . . . Report Inventory 10 | . 1 . . . . . 2 . . . . . . . 1 . 1 . 1 . . . . . 1 . . . . . 1 . 2 . . . . . . . Retrieve Components 3 | . . . . . . . 1 . . . . . . . . . . . . . . . . . . . . . . . . . 1 . . . 1 . . . Scanalyzer 30 | . . . 1 . . . 5 . 8 . 2 . . . . . 2 . 1 . . . . . 7 . . . . . 3 . . . 1 . . . . . Insert Component 7 | . . . . . . . 2 . 2 . 1 . . . . . . . . . . . . . 2 . . . . . . . . . . . . . . . Analyze 10 | . . . . . . . 2 . 3 . 1 . . . . . . . . . . . . . 4 . . . . . . . . . . . . . . . Retrieve Study 13 | . . . 1 . . . 1 . 3 . . . . . . . 2 . 1 . . . . . 1 . . . . . 3 . . . 1 . . . . . Garrison Access Hacks 19 | . . . . . . . 2 . 1 . 1 . 1 . 1 . 1 . . . 1 . 2 . 1 . . . 2 . 1 . 1 . 2 . 2 . . . Unlock Access 13 | . . . . . . . 1 . 1 . . . 1 . 1 . 1 . . . 1 . 2 . . . . . 1 . 1 . 1 . 1 . 1 . . . Seal Access 3 | . . . . . . . . . . . 1 . . . . . . . . . . . . . 1 . . . 1 . . . . . . . . . . . Coupler Status 3 | . . . . . . . 1 . . . . . . . . . . . . . . . . . . . . . . . . . . . 1 . 1 . . . Unauthorized Hacks 161 | . 1 . 11 . . . 13 . 12 . 18 . 6 . 7 . 10 . 12 . 4 . 4 . 6 9 . . 6 . 20 . 7 . 4 1 5 2 . 3 Terminals 88 | . . . 11 . . . 7 . 12 . 6 . 4 . 1 . 3 . 6 . 1 . . . 2 9 . . 5 . 12 . . . 3 1 . 2 . 3 Track 16 | . . . 2 . . . . . 3 . . . . . . . 2 . 4 . . . . . . . . . 2 . 1 . . . . . . 1 . 1 Assimilate 8 | . . . 1 . . . . . 1 . 1 . 1 . . . 1 . . . . . . . . 1 . . . . 1 . . . 1 . . . . . Botnet 24 | . . . 2 . . . 2 . 2 . 2 . 1 . 1 . . . 1 . 1 . . . 1 2 . . 2 . 3 . . . 1 1 . . . 2 Detonate 2 | . . . . . . . . . . . 1 . . . . . . . . . . . . . 1 . . . . . . . . . . . . . . . Disrupt 2 | . . . . . . . . . . . . . . . . . . . . . . . . . . . . . . . 1 . . . . . . 1 . . Operators 4 | . . . 1 . . . . . 1 . . . . . . . . . . . . . . . . 1 . . 1 . . . . . . . . . . . Skim 29 | . . . 5 . . . 4 . 5 . 2 . 1 . . . . . 1 . . . . . . 5 . . . . 5 . . . 1 . . . . . Sabotage 2 | . . . . . . . . . . . . . 1 . . . . . . . . . . . . . . . . . 1 . . . . . . . . . Search 1 | . . . . . . . 1 . . . . . . . . . . . . . . . . . . . . . . . . . . . . . . . . . Fabricators 31 | . . . . . . . . . . . 8 . . . 5 . 4 . 3 . 1 . 2 . 3 . . . . . 3 . 2 . . . . . . . Report 1 | . . . . . . . . . . . 1 . . . . . . . . . . . . . . . . . . . . . . . . . . . . . Prioritize 13 | . . . . . . . . . . . 2 . . . 2 . 2 . 2 . . . 1 . 2 . . . . . 1 . 1 . . . . . . . Liberate 6 | . . . . . . . . . . . 2 . . . 1 . 1 . 1 . . . . . . . . . . . 1 . . . . . . . . . Haulers 6 | . . . . . . . . . . . 1 . . . 1 . 1 . . . . . 1 . 1 . . . . . . . 1 . . . . . . . Recompile 5 | . . . . . . . . . . . 2 . . . 1 . . . . . 1 . . . . . . . . . 1 . . . . . . . . . Repair Stations 2 | . . . . . . . . . . . 1 . . . . . . . . . . . . . 1 . . . . . . . . . . . . . . . Mechanics 1 | . . . . . . . . . . . 1 . . . . . . . . . . . . . . . . . . . . . . . . . . . . . Patch 1 | . . . . . . . . . . . . . . . . . . . . . . . . . 1 . . . . . . . . . . . . . . . Recycling Units 26 | . 1 . . . . . 4 . . . 2 . . . 1 . 2 . 3 . 2 . . . . . . . . . 4 . 4 . . . 3 . . . Monitor 3 | . . . . . . . 1 . . . . . . . . . . . . . . . . . . . . . . . 1 . 1 . . . . . . . Reject 6 | . . . . . . . 1 . . . 1 . . . . . . . 1 . . . . . . . . . . . 1 . 1 . . . 1 . . . Recyclers 8 | . . . . . . . 1 . . . . . . . 1 . 1 . 1 . 1 . . . . . . . . . 1 . 1 . . . 1 . . . Mask 8 | . . . . . . . 1 . . . 1 . . . . . 1 . 1 . 1 . . . . . . . . . 1 . 1 . . . 1 . . . Tunnel 1 | . 1 . . . . . . . . . . . . . . . . . . . . . . . . . . . . . . . . . . . . . . . Scanalyzers . | . . . . . . . . . . . . . . . . . . . . . . . . . . . . . . . . . . . . . . . . . Garrison Access 14 | . . . . . . . 2 . . . 1 . 2 . . . 1 . . . . . 2 . . . . . 1 . 1 . 1 . 1 . 2 . . . Reprogram 9 | . . . . . . . 1 . . . . . 1 . . . 1 . . . . . 1 . . . . . 1 . 1 . 1 . 1 . 1 . . . Watchers 4 | . . . . . . . 1 . . . 1 . 1 . . . . . . . . . 1 . . . . . . . . . . . . . . . . . Eject 1 | . . . . . . . . . . . . . . . . . . . . . . . . . . . . . . . . . . . . . 1 . . . Data Cores Recovered 3 | . . . 1 . . . . . . . . . 1 . . . . . . . . . . . . . . . . . 1 . . . . . . . . . Used 2 | . . . 1 . . . . . . . . . 1 . . . . . . . . . . . . . . . . . . . . . . . . . . . Hacking Detections 145 | . 7 . 7 . . . 6 2 8 2 10 . 2 3 7 . 8 2 12 . 6 4 4 1 12 9 1 . 5 1 6 1 6 . 3 2 3 1 . 4 Full Trace Events 14 | . 1 . . . . . . . . . . . . . 2 . 2 . 4 . 1 2 . . . . . . . . 1 . 1 . . . . . . . Feedback Events . | . . . . . . . . . . . . . . . . . . . . . . . . . . . . . . . . . . . . . . . . . Feedback Blocked . | . . . . . . . . . . . . . . . . . . . . . . . . . . . . . . . . . . . . . . . . . Robot Schematics Acquired 5 | . . . . . . . . . . . . . 1 . . . 1 . . . . 1 . . . . . . . . 2 . . . . . . . . . Robots Built 31 | . . . . . . . . . . . . . . . 7 . 8 . 9 . . . 5 . 2 . . . . . . . . . . . . . . . Authchips 5 | . . . . . . . . . . . . . . . 1 . . . . . . . 2 . 2 . . . . . . . . . . . . . . . Time 982 | . . . . . . . . . . . . . . . 143 . 167 . 169 . . . 254 . 249 . . . . . . . . . . . . . . . Total Robot Build Rating 133 | . . . . . . . . . . . . . . . 31 . 32 . 33 . . . 23 . 14 . . . . . . . . . . . . . . . Part Schematics Acquired 21 | . 1 . 1 . . . 2 . 3 . . . . . 1 . . 1 2 . . . . . 2 2 . . . . 4 1 1 . . . . . . . Parts Built 12 | . . . . . . . . . . . 2 . . . 1 . 1 . 3 . 2 . . . . . . . . . 1 . 2 . . . . . . . Authchips 5 | . . . . . . . . . . . 2 . . . . . 1 . . . 1 . . . . . . . . . . . 1 . . . . . . . Time 694 | . . . . . . . . . . . 109 . . . 23 . 31 . 270 . 78 . . . . . . . . . 34 . 149 . . . . . . . Total Part Build Rating 66 | . . . . . . . . . . . 6 . . . 5 . 5 . 18 . 10 . . . . . . . . . 8 . 14 . . . . . . . Part Studies Acquired 13 | . . . 1 . . . 1 . 3 . . . . . . . 2 . 1 . . . . . 1 . . . . . 3 . . . 1 . . . . . Parts Repaired 6 | . . . . . . . . . . . 1 . . . . . . . . . 2 . 1 . . . . . . . . . 1 . 1 . . . . . Time 246 | . . . . . . . . . . . 16 . . . . . . . . . 96 . 40 . . . . . . . . . 54 . 40 . . . . . Parts Recycled . | . . . . . . . . . . . . . . . . . . . . . . . . . . . . . . . . . . . . . . . . . Recycled Matter . | . . . . . . . . . . . . . . . . . . . . . . . . . . . . . . . . . . . . . . . . . Retrieved Matter . | . . . . . . . . . . . . . . . . . . . . . . . . . . . . . . . . . . . . . . . . . Retrieved Components 4 | . . . . . . . 1 . . . . . . . . . . . . . . . . . . . . . . . . . 3 . . . . . . . Parts Scanalyzed 7 | . . . . . . . 2 . 2 . 1 . . . . . . . . . . . . . 2 . . . . . . . . . . . . . . . Part Schematics Acquired 5 | . . . . . . . 2 . 1 . . . . . . . . . . . . . . . 2 . . . . . . . . . . . . . . . Parts Damaged 1 | . . . . . . . . . . . 1 . . . . . . . . . . . . . . . . . . . . . . . . . . . . . Bothacking | -11 -10 -10 -9 -9 -9 -8 -8 -8 -8 -8 -7 -7 -7 -7 -6 -6 -6 -6 -5 -5 -5 -5 -4 -4 -4 -4 -4 -4 -4 -4 -3 -3 -2 -2 -2 -2 -1 -1 -1 -1 ------------ Run | Yrd Mat Min Mat Min Exi Min Mat Gar Mat Gar Fac Was Fac Gar Fac Was Fac Gar Fac Was Fac Gar Fac Gar Fac Ext Cet Arc Hub Gar Res Gar Res Gar Res Gar Acc Gar Acc Com Used RIF Installer 12 | . . . . . . . . 1 . 2 . . . 1 . . . 1 . . . 1 . 1 . . . . . 1 . 1 . 1 . 1 . 1 . . Coupler Efficiency 2 | . . . . . . . . . . . . . . . . . . . . . . . . . . . . . . . . . . 1 . 1 . . . . Code Merge 1 | . . . . . . . . . . . . . . . . . . . . . . . . . . . . . . 1 . . . . . . . . . . Threat Obfuscator 1 | . . . . . . . . . . . . . . . . . . . . . . 1 . . . . . . . . . . . . . . . . . . Signal Jammer 1 | . . . . . . . . . . 1 . . . . . . . . . . . . . . . . . . . . . . . . . . . . . . Robot Detection 1 | . . . . . . . . . . . . . . . . . . 1 . . . . . . . . . . . . . . . . . . . . . . Alert ID Control 1 | . . . . . . . . . . . . . . . . . . . . . . . . . . . . . . . . 1 . . . . . . . . Structural Interface 1 | . . . . . . . . . . . . . . . . . . . . . . . . 1 . . . . . . . . . . . . . . . . Autooverride 2 | . . . . . . . . . . 1 . . . 1 . . . . . . . . . . . . . . . . . . . . . . . . . . Crosswire 1 | . . . . . . . . . . . . . . . . . . . . . . . . . . . . . . . . . . . . . . 1 . . Robots Hacked 192 | . . . . . 4 . . . . 2 5 . 1 . 2 . 3 8 7 1 5 10 14 12 14 11 8 . 2 10 5 6 1 9 . 12 3 10 25 2 Non-combat 65 | . . . . . 3 . . . . . 5 . 1 . 2 . 3 . 3 . 5 1 6 1 6 5 . . 1 . 4 . 1 . . . 3 . 13 2 Combat 127 | . . . . . 1 . . . . 2 . . . . . . . 8 4 1 . 9 8 11 8 6 8 . 1 10 1 6 . 9 . 12 . 10 12 . Autooverrided 45 | . . . . . . . . . . . . . . . . . . 5 1 . . 1 2 4 3 . 7 . 1 4 . 2 . 3 . 4 . 3 5 . Robot Hacks Applied 172 | . . . . . 4 . . . . 2 6 . 3 . 3 . 3 4 6 1 7 11 12 11 13 11 2 . 1 6 6 6 1 6 . 11 3 9 21 3 parse_system 12 | . . . . . 4 . . . . . 1 . . . . . . . . . 1 . . 2 . 2 1 . . . 1 . . . . . . . . . find_chute 4 | . . . . . . . . . . . 1 . . . 1 . . . 1 . . . 1 . . . . . . . . . . . . . . . . . deconstruct_machine 1 | . . . . . . . . . . . . . . . . . . . . . . . . . . . . . . . . . . . . . . . 1 . map_walls 13 | . . . . . . . . . . . . . . . . . 2 . . . 2 . . . 2 . . . . . . . . . . . . . 7 . find_fabricator 6 | . . . . . . . . . . . 1 . . . 1 . . . . . 1 . . . 2 . . . . . 1 . . . . . . . . . find_dsf 3 | . . . . . . . . . . . 1 . . . . . . . . . 1 . . . . . . . . . 1 . . . . . . . . . drop_inventory 15 | . . . . . . . . . . . 1 . . . 1 . . . 1 . 1 . 2 . 2 1 . . 1 . 1 . 1 . . . . . 3 . find_recycling 4 | . . . . . . . . . . . 1 . . . . . 1 . . . . . . . 1 . . . . . 1 . . . . . . . . . ignore_parts 1 | . . . . . . . . . . . . . . . . . . . . . . . . . . 1 . . . . . . . . . . . . . . find_station 2 | . . . . . . . . . . . . . . . . . . . . . 1 . 1 . . . . . . . . . . . . . . . . . release_backups 1 | . . . . . . . . . . . . . . . . . . . . . . . . . . 1 . . . . . . . . . . . . . . deconstruct_bot 1 | . . . . . . . . . . . . . . . . . . . . . . . 1 . . . . . . . . . . . . . . . . . locate_traps 1 | . . . . . . . . . . . . . 1 . . . . . . . . . . . . . . . . . . . . . . . . . . . disarm_traps 1 | . . . . . . . . . . . . . . . . . . . . . . . . . . . . . . . . . . . . . . . . 1 reprogram_traps 1 | . . . . . . . . . . . . . 1 . . . . . . . . . . . . . . . . . . . . . . . . . . . block_reporting 4 | . . . . . . . . . . . . . . . . . . . . . . . . . . 1 . . . . 1 . . . . . . . . 2 clear_recycling 1 | . . . . . . . . . . . . . 1 . . . . . . . . . . . . . . . . . . . . . . . . . . . map_route 5 | . . . . . . . . . . . . . . . . . . . . . . . 1 . 1 . . . . . . . . . . . 1 . 2 . ignore_targets 1 | . . . . . . . . . . . . . . . . . . . . 1 . . . . . . . . . . . . . . . . . . . . link_fov 3 | . . . . . . . . . . . . . . . . . . . 1 . . 1 . . . . . . . . . . . . . . 1 . . . focus_fire 10 | . . . . . . . . . . . . . . . . . . . . . . 1 4 2 1 . . . . 1 . 1 . . . . . . . . scatter_targeting 2 | . . . . . . . . . . . . . . . . . . . . . . 1 . . . 1 . . . . . . . . . . . . . . disrupt_area 1 | . . . . . . . . . . . . . . . . . . . . . . . . . . . . . . . . . . . . 1 . . . . spike_heat 3 | . . . . . . . . . . . . . . . . . . . . . . 3 . . . . . . . . . . . . . . . . . . amplify_resonance 7 | . . . . . . . . . . . . . . . . . . . . . . . 2 1 . 1 . . . . . . . . . 2 . . 1 . wipe_record 5 | . . . . . . . . . . . . . . . . . . . . . . . . 1 1 . . . . . . . . . . . . 1 2 . disable_weapons 4 | . . . . . . . . . . . . . . . . . . . . . . . . . . . 1 . . . . 2 . . . . . 1 . . reboot_system 4 | . . . . . . . . . . . . . . . . . . . . . . . . . . 1 . . . . . . . 2 . . . . 1 . overwrite_iff 24 | . . . . . . . . . . 2 . . . . . . . . . . . 1 . 3 2 . . . . . . 1 . 2 . 6 . 4 3 . streamctrl_high 1 | . . . . . . . . . . . . . . . . . . . . . . . . . . . . . . 1 . . . . . . . . . . formatsys_low 1 | . . . . . . . . . . . . . . . . . . . . . . . . . . . . . . . . . . . . . . . 1 . formatsys_high 29 | . . . . . . . . . . . . . . . . . . 4 3 . . 4 . 2 1 2 . . . 4 . 2 . 2 . 1 1 3 . . formatsys_deep 1 | . . . . . . . . . . . . . . . . . . . . . . . . . . . . . . . . . . . . 1 . . . . Relay Couplers Released 141 | . . . . . . . . 18 . 7 . . . 9 . . . 11 . . . 18 2 14 . . . . . 17 . 3 . 12 . 20 3 5 2 . Ejected 3 | . . . . . . . . . . . . . . . . . . . . . . . . . . . . . . . . . . . . . 3 . . . Machine Destruction 135 | . . . . . . . . 18 . 7 . . . 9 . . . 11 . . . 18 2 14 . . . . . 14 . 3 . 12 . 20 . 5 2 . Programmers 3 | . . . . . . . . . . . . . . . . . . . . . . . . . . . . . . 3 . . . . . . . . . . Attached 61 | . . . . . . . . . . 2 1 . . . 1 . . 7 2 . . 11 . 13 . . . . . 12 1 3 . 4 . 3 . 1 . . Crosswired 2 | . . . . . . . . . . . . . . . . . . . . . . . . . . . . . . . . . . . . . . 2 . . Merged Code Value 268 | . . . . . . . . . . . . . . . . . . . . . . . . . . . . . . . . . . 50 9 151 29 29 . . Fabnet Peak Effective % . | . . . . . . . . . . . . . . . . . . . . . . . . . . . . . . . . . . . . . . . . . Robots Rewired 21 | . . . . . . . . 4 . . . . . . . . . . . . . . . 4 . 11 . . . . . . . . . . . 2 . . Allies Hacked 7 | . . . . . . . . . . . . . . . . . . . 1 . 2 . . . 2 . . . . 1 . . . . . . . 1 . . Hacks Repelled 1 | . . . . . . . . . . 1 . . . . . . . . . . . . . . . . . . . . . . . . . . . . . . Allies | -11 -10 -10 -9 -9 -9 -8 -8 -8 -8 -8 -7 -7 -7 -7 -6 -6 -6 -6 -5 -5 -5 -5 -4 -4 -4 -4 -4 -4 -4 -4 -3 -3 -2 -2 -2 -2 -1 -1 -1 -1 -------- Run | Yrd Mat Min Mat Min Exi Min Mat Gar Mat Gar Fac Was Fac Gar Fac Was Fac Gar Fac Was Fac Gar Fac Gar Fac Ext Cet Arc Hub Gar Res Gar Res Gar Res Gar Acc Gar Acc Com Total Allies 216 | . . . 1 . . . 3 4 . 2 . . 1 . 7 . 9 10 16 19 . 9 7 16 8 19 12 . 3 11 2 7 . 8 4 11 1 17 9 . Largest Group 19 | . . . 1 . . . . 5 . 2 . . 1 1 7 1 7 5 9 19 14 6 10 9 6 13 12 9 7 8 2 5 . 2 3 6 3 10 2 . Highest-Rated Group 1020 | . . . 10 . . . . 97 . 31 . . 21 21 135 12 84 208 207 684 559 316 481 514 315 525 1020 774 572 390 112 235 . 133 246 389 122 657 109 . Highest-Rated Ally 219 | . . . 10 . . . . 39 . 16 . . 21 21 29 12 12 62 62 50 50 85 93 119 93 159 159 159 96 56 56 64 . 69 82 80 55 219 64 . Total Orders 34 | . . . . . . . . . . . . . . . . . . 1 20 . . . . 2 . . . 2 1 5 . . . 2 . 1 . . . . STAY 27 | . . . . . . . . . . . . . . . . . . 1 18 . . . . 1 . . . 1 1 3 . . . 1 . 1 . . . . FOLLOW 7 | . . . . . . . . . . . . . . . . . . . 2 . . . . 1 . . . 1 . 2 . . . 1 . . . . . . Ally Attacks 1318 | . . . . . . . . 63 . 7 . . . 2 49 8 42 83 92 97 68 38 100 115 37 107 40 26 58 77 . 26 . 24 10 54 . 77 18 . Total Damage 39835 | . . . . . . . . 806 . 51 . . . 63 609 77 401 2053 1424 4326 1913 1468 2135 4594 1327 3610 1814 1022 2233 2600 . 973 . 760 344 2061 . 2796 375 . Kills 207 | . . . . . . . . 7 . 1 . . . 1 4 . 2 14 12 9 14 10 13 19 11 15 9 4 15 13 . 2 . 1 3 13 . 13 2 . Allies Corrupted 6 | . . . . . . . . . . . . . . . . . . 1 . . . . . . 2 . . . 2 . . . . 1 . . . . . . Allies Melted 2 | . . . . . . . . . . . . . . . . . . . . . . 1 . . . 1 . . . . . . . . . . . . . . Intel | -11 -10 -10 -9 -9 -9 -8 -8 -8 -8 -8 -7 -7 -7 -7 -6 -6 -6 -6 -5 -5 -5 -5 -4 -4 -4 -4 -4 -4 -4 -4 -3 -3 -2 -2 -2 -2 -1 -1 -1 -1 ------- Run | Yrd Mat Min Mat Min Exi Min Mat Gar Mat Gar Fac Was Fac Gar Fac Was Fac Gar Fac Was Fac Gar Fac Gar Fac Ext Cet Arc Hub Gar Res Gar Res Gar Res Gar Acc Gar Acc Com Active Infowar (turns) 13062 | . 416 76 700 213 111 320 499 1407 237 1508 369 32 139 330 170 37 129 . 282 . 152 486 318 1085 585 . . . . . 638 62 446 5 129 26 176 276 1068 635 Optics 7373 | . 396 76 73 . . . 362 1407 237 1508 369 32 139 330 170 37 129 . . . . . . . . . . . . . . . . . . . 129 276 1068 635 Sensors 753 | . . . . . . . . . . . . . . . . . . . . . . . . . . . . . . . . . . . . . . . 753 . IFF 282 | . . . . . . . . . . . . . . . . . . . 282 . . . . . . . . . . . . . . . . . . . . . Terrain 2118 | . . . . . . . . . . . . . . . . . . . . . . . . . . . . . . . 638 62 446 5 129 26 176 8 628 . Structural 3004 | . 412 76 84 187 111 320 499 721 207 1 214 32 139 1 . . . . . . . . . . . . . . . . . . . . . . . . . . T.N.C. 1822 | . . . . . . . 22 1407 237 156 . . . . . . . . . . . . . . . . . . . . . . . . . . . . . . Machine Analysis 3352 | . . . 700 26 . . . . . . . . . . . . . . . . 152 486 318 1085 585 . . . . . . . . . . . . . . . Jamming 26 | . . . . . . . . . . . . . . . . . . . . . 26 . . . . . . . . . . . . . . . . . . . Robot Analysis Total 8 | . . . 4 . . . . . 2 . . . . . . . . . . . . . . . . . . . 1 . . . 1 . . . . . . . Derelict Logs Recovered 1 | . . 1 . . . . . . . . . . . . . . . . . . . . . . . . . . . . . . . . . . . . . . Drone Launches . | . . . . . . . . . . . . . . . . . . . . . . . . . . . . . . . . . . . . . . . . . Drone Recoveries . | . . . . . . . . . . . . . . . . . . . . . . . . . . . . . . . . . . . . . . . . . Exploration | -11 -10 -10 -9 -9 -9 -8 -8 -8 -8 -8 -7 -7 -7 -7 -6 -6 -6 -6 -5 -5 -5 -5 -4 -4 -4 -4 -4 -4 -4 -4 -3 -3 -2 -2 -2 -2 -1 -1 -1 -1 ------------- Run | Yrd Mat Min Mat Min Exi Min Mat Gar Mat Gar Fac Was Fac Gar Fac Was Fac Gar Fac Was Fac Gar Fac Gar Fac Ext Cet Arc Hub Gar Res Gar Res Gar Res Gar Acc Gar Acc Com Turns Passed 21489 | 25 474 76 700 217 111 320 499 1407 237 1508 369 32 139 330 170 37 327 622 751 240 337 486 318 1085 870 1235 363 623 375 1156 675 399 454 1107 301 955 176 276 1068 639 Spaces Moved 28341 | 37 610 197 699 472 273 605 593 1354 421 1118 837 94 349 493 364 106 712 906 1411 319 725 1077 393 1014 1544 1348 155 260 734 1443 1461 267 753 814 503 993 314 381 1641 551 Core 2286 | 37 51 . . . . . . 3 . . . . . . . . 89 . . . . . . 904 10 483 155 260 54 149 . . . 81 . . . . . 10 Treads . | . . . . . . . . . . . . . . . . . . . . . . . . . . . . . . . . . . . . . . . . . Legs . | . . . . . . . . . . . . . . . . . . . . . . . . . . . . . . . . . . . . . . . . . Wheels . | . . . . . . . . . . . . . . . . . . . . . . . . . . . . . . . . . . . . . . . . . Hover . | . . . . . . . . . . . . . . . . . . . . . . . . . . . . . . . . . . . . . . . . . Flight 26055 | . 559 197 699 472 273 605 593 1351 421 1118 837 94 349 493 364 106 623 906 1411 319 725 1077 393 110 1534 865 . . 680 1294 1461 267 753 733 503 993 314 381 1641 541 Fastest Speed 22 | 50 37 37 37 37 37 37 34 34 32 32 32 32 32 32 32 32 29 37 27 22 22 22 22 22 25 27 100 50 27 30 32 32 34 34 37 37 37 37 37 40 Average Speed 37 | 50 39 37 37 37 37 37 35 34 32 32 32 32 32 32 32 32 36 37 33 29 23 22 24 62 31 59 115 82 28 35 32 33 34 50 37 38 37 39 38 40 Slowest Speed 385 | 50 50 37 37 37 37 37 110 200 34 32 32 32 32 32 32 32 50 37 117 205 115 87 385 100 50 300 300 100 67 192 32 115 195 350 37 120 37 120 40 200 Overloaded Moves 44 | . . . . . . . . . . . . . . . . . 8 . 30 . . . . . . . . . 6 . . . . . . . . . . . Propulsion Burnouts . | . . . . . . . . . . . . . . . . . . . . . . . . . . . . . . . . . . . . . . . . . Robots Hopped 159 | . 16 4 13 1 . 9 1 2 5 . 1 2 . 1 . 3 2 . 15 . 13 10 6 . 6 18 . . 5 . 6 1 4 . 2 . . 2 9 2 Potential Cave-ins 13 | . . . . . . . . . . . . . . . . . . . . . . . . . . . . . . 4 2 . . 7 . . . . . . Cave-ins Triggered 1 | . . . . . . . . . . . . . . . . . . . . . . . . . . . . . . . . . . 1 . . . . . . Exploration Rate (%) 51 | 3 82 50 51 78 70 96 49 94 57 71 23 83 13 55 10 78 17 77 30 95 19 86 8 70 37 97 66 75 52 64 24 29 23 64 10 86 14 42 48 19 Regions Visited 40 Branch Regions 9 Pre-discovered Areas 6 | . 1 . 3 . 1 . . . . . . . . . . . . . . . . . . . . 1 . . . . . . . . . . . . . . Known Exits Taken 15 | . 1 . 1 . . . 1 . 1 . . . 1 . . . 1 . . . 1 . 1 . 1 . . . 1 . 1 . 1 . 1 . 1 . 1 . Unknown Exits Taken 8 | 1 . 1 . 1 1 1 . . . . . . . . . . . . . . . . . . . 1 1 1 . . . . . . . . . . . . Scrap Searched 2 | . . . . 1 . 1 . . . . . . . . . . . . . . . . . . . . . . . . . . . . . . . . . . Spaces Dug 302 | . . . 27 19 . . 10 4 7 17 7 . 6 19 3 . 2 8 14 . 2 4 3 4 28 . . . 1 43 10 2 16 7 4 3 2 1 19 10 Terrain Destroyed 989 | . . . 33 46 . . 55 4 7 17 7 . 6 19 3 . 2 8 60 . 5 4 3 4 138 1 . 3 324 83 11 3 27 22 4 4 2 1 71 12 Melee 149 | . . . 1 1 . . 6 4 7 17 7 . 6 16 3 . 1 . . . . . 2 4 12 . . . 1 5 9 1 15 2 4 2 2 1 15 5 Projectile 72 | . . . . . . . . . . . . . . . . . 1 . 2 . 5 4 1 . 2 1 . 3 2 11 2 2 1 20 . 2 . . 6 7 AOE 768 | . . . 32 45 . . 49 . . . . . . 3 . . . 8 58 . . . . . 124 . . . 321 67 . . 11 . . . . . 50 . Terrain Rammed . | . . . . . . . . . . . . . . . . . . . . . . . . . . . . . . . . . . . . . . . . . Walls Destroyed . | . . . . . . . . . . . . . . . . . . . . . . . . . . . . . . . . . . . . . . . . . Machines Disabled . | . . . . . . . . . . . . . . . . . . . . . . . . . . . . . . . . . . . . . . . . . Actions | -11 -10 -10 -9 -9 -9 -8 -8 -8 -8 -8 -7 -7 -7 -7 -6 -6 -6 -6 -5 -5 -5 -5 -4 -4 -4 -4 -4 -4 -4 -4 -3 -3 -2 -2 -2 -2 -1 -1 -1 -1 --------- Run | Yrd Mat Min Mat Min Exi Min Mat Gar Mat Gar Fac Was Fac Gar Fac Was Fac Gar Fac Was Fac Gar Fac Gar Fac Ext Cet Arc Hub Gar Res Gar Res Gar Res Gar Acc Gar Acc Com Total 38172 | 42 728 195 1109 494 279 689 851 2222 507 2220 924 92 366 631 413 106 777 1171 1663 462 871 1296 593 1436 1878 1751 333 625 876 2010 1628 552 926 1465 608 1537 367 501 2024 954 Wait 7645 | . 50 . 375 2 . 91 205 705 71 995 45 . 5 46 33 . 34 204 189 129 98 136 154 288 253 296 158 325 95 398 107 251 132 483 94 434 39 92 286 347 Move 28012 | 36 579 188 673 469 272 586 590 1349 412 1117 835 90 348 490 364 100 707 905 1381 318 703 1061 382 1013 1531 1318 154 259 723 1442 1448 264 744 812 498 992 313 377 1622 547 Hop 135 | . 14 4 12 1 . 9 1 2 4 . 1 1 . 1 . 2 2 . 15 . 9 5 5 . 6 11 . . 5 . 6 1 4 . 2 . . 1 9 2 Pick Up 115 | 3 10 2 5 1 . . 4 2 1 8 7 . . 1 1 2 4 8 3 1 2 3 4 5 4 2 . . 1 10 5 . 3 6 2 3 . . 2 . Fast Attach 213 | 2 5 . 5 2 1 . 8 . 3 1 3 1 1 1 4 . 7 8 9 4 9 9 4 16 11 11 2 7 7 15 10 2 9 8 2 9 2 2 10 3 Attach 146 | . 4 . 4 . . . 4 1 . 1 2 . . 1 1 . 7 5 16 2 2 10 6 20 4 11 3 . 1 10 4 2 5 6 . 4 2 4 2 2 Detach 99 | . . . 3 1 . . 1 . . . . . . . . . 4 1 14 1 2 9 5 18 2 10 3 . . 7 2 2 4 1 . 1 1 4 1 2 Swap 140 | . 1 . 7 4 1 1 7 4 2 2 3 . . 3 . . . 1 5 2 3 4 . 2 3 3 2 1 6 16 3 4 . 17 3 9 . 1 16 4 Drop 221 | 1 6 1 11 3 1 . 5 2 5 8 7 . . . 1 2 3 8 7 4 7 8 3 13 10 12 3 3 6 19 13 3 6 11 3 10 2 1 9 4 Fire 443 | . 59 . 8 5 . . 10 . . . . . . 1 . . 1 23 11 . 9 34 28 35 16 21 8 10 6 30 9 11 4 29 . 18 4 16 27 10 Melee 541 | . . . 6 6 4 2 16 66 9 52 21 . 12 29 7 . 4 7 8 1 7 . 2 8 23 23 . 20 4 34 21 12 15 31 4 27 4 3 40 13 Ram 4 | . . . . . . . . . . . . . . . . . . . . . . . . . . 2 . . 2 . . . . . . . . . . . Kick . | . . . . . . . . . . . . . . . . . . . . . . . . . . . . . . . . . . . . . . . . . Crush . | . . . . . . . . . . . . . . . . . . . . . . . . . . . . . . . . . . . . . . . . . Escape Stasis 369 | . . . . . . . . 75 . 30 . . . 58 . . . . . . . 15 . 15 15 15 . . 20 15 . . . 61 . 30 . . . 20 Rewire 18 | . . . . . . . . 16 . . . . . . . . . 1 1 . . . . . . . . . . . . . . . . . . . . . Trap 71 | . . . . . . . . . . 6 . . . . 2 . 4 . 4 . 20 2 . 3 . 16 . . . 14 . . . . . . . . . . Miscellaneous . | . . . . . . . . . . . . . . . . . . . . . . . . . . . . . . . . . . . . . . . . . Route ------- -11/Scrapyard -10/Materials (discovered 4 exits: *Mat x2 / *Min / [*Sub]) -10/Mines (discovered 2 exits: *Mat x2) -9/Materials (discovered 3 exits: *Mat / *Min x2) -9/Mines (discovered 2 exits: *Mat / *Exi) -9/Exiles (discovered 2 exits: [*Min x2]) -8/Mines (discovered 2 exits: *Mat x2) -8/Materials (discovered 4 exits: *Fac / *Sto x2 / Gar) -8/Garrison (discovered 3 exits: *Mat x3) -8/Materials (discovered 4 exits: *Fac x3 / Gar) -8/Garrison (discovered 3 exits: *Fac x3) -7/Factory -7/Waste -7/Factory (discovered 2 exits: *Fac / Gar) -7/Garrison (discovered 4 exits: *Fac x3 / [Fac]) -6/Factory -6/Waste -6/Factory (discovered 5 exits: Fac x2 / Low x2 / Gar) -6/Garrison (discovered 3 exits: *Fac x3) -5/Factory (discovered 2 exits: Upp x2) -5/Waste -5/Factory -5/Garrison (discovered 3 exits: *Fac x3) -4/Factory -4/Garrison (discovered 4 exits: *Fac x4) -4/Factory (discovered 6 exits: *Res / *Upp x2 / *Ext x2 / Arm) -4/Extension (discovered 2 exits: *Res / *Cet) -4/Cetus (discovered 2 exits: *Res / [*Arc]) -4/Archives (discovered 3 exits: *Res / *Hub x2) -4/Hub_04(d) (discovered 5 exits: *Res x4 / Gar) -4/Garrison (discovered 3 exits: *Res x3) -3/Research (discovered 5 exits: Res x2 / *Tes x2 / Gar) -3/Garrison (discovered 3 exits: *Res x3) -2/Research (discovered 3 exits: Acc / *Qua / Gar) -2/Garrison (discovered 2 exits: *Res x2) -2/Research (discovered 2 exits: Acc / Gar) -2/Garrison (discovered 3 exits: *Acc x3) -1/Access -1/Garrison (discovered 3 exits: [*Acc x3]) -1/Access (discovered 2 exits: [*Sur] / *Com) -1/Command History --------- Turn | Location | Event 18 | -11/Scrapyard | Discovered new exit (range 14) 26 | -11/Scrapyard | Entered Materials 50 | -10/Materials | Discovered new exit (range 14) 273 | -10/Materials | Core integrity fell below 50% 276 | -10/Materials | Discovered new exit (range 8) 317 | -10/Materials | Build established: Mutant 355 | -10/Materials | Identified exit to Mines 355 | -10/Materials | Discovered new exit (range 14) 358 | -10/Materials | Central database locked down 468 | -10/Materials | Discovered new exit (range 10) 500 | -10/Materials | Entered Mines 509 | -10/Mines | Learned Materials trap positions 525 | -10/Mines | Discovered new exit (range 9) 532 | -10/Mines | Received a Rocket Launcher from a helpful Derelict 560 | -10/Mines | Assembled infested the area 565 | -10/Mines | Assisted by a Guerilla fighting off Assembled 568 | -10/Mines | Discovered new exit (range 8) 576 | -10/Mines | Entered Materials 576 | -9/Materials | Evolved 2 slots: Utility x2 577 | -9/Materials | Loaded intel: 16 trap records 674 | -9/Materials | Discovered new exit (range 3) 726 | -9/Materials | Identified exit to Mines 846 | -9/Materials | Central database locked down 889 | -9/Materials | Learned location of Recycling (-8) 935 | -9/Materials | Build established: Hacker-Mutant 976 | -9/Materials | Search patrols dispatched 994 | -9/Materials | Learned location of 1 exit from Storage 1032 | -9/Materials | Learned location of 1 exit from Storage 1062 | -9/Materials | Learned Materials trap positions 1083 | -9/Materials | Learned 4 Recycling zone layouts 1210 | -9/Materials | Learned Storage trap positions 1276 | -9/Materials | Entered Mines 1281 | -9/Mines | Met a Derelict shopkeep closing up shop 1300 | -9/Mines | Found the Drone Emporium 1303 | -9/Mines | Found Prototype Device 1303 | -9/Mines | Identified Sensor Drone Bay 1321 | -9/Mines | Met a Derelict testing a Signal Generator 1322 | -9/Mines | Met a Derelict bent on vengeance 1347 | -9/Mines | Found DCF Scrap (13 items) 1374 | -9/Mines | Discovered new exit (range 8) 1466 | -9/Mines | Deemed a non-threat by the Exiles lab entrance 1466 | -9/Mines | Discovered new exit (range 6) 1493 | -9/Mines | Entered Exiles 1498 | -9/Exiles | Discovered new exit (range 15) 1503 | -9/Exiles | Met 8R-AWN 1512 | -9/Exiles | Met EX-HEX 1528 | -9/Exiles | Met EX-DEC 1539 | -9/Exiles | Learned location of Zion (-7) 1547 | -9/Exiles | Met EX-BIN 1554 | -9/Exiles | Aligned with FarCom system 1554 | -9/Exiles | Given EX-Vault access code 1563 | -9/Exiles | Opened EX-Vault 1565 | -9/Exiles | Found Longsword +1 1575 | -9/Exiles | Warned to stay clear of 0b10 Research branches 1581 | -9/Exiles | Exiles lab attacked by MAIN.C 1599 | -9/Exiles | Discovered new exit (range 14) 1604 | -9/Exiles | Left Exiles lab with Longsword +1 1604 | -9/Exiles | Entered Mines 1644 | -8/Mines | Discovered new exit (range 8) 1680 | -8/Mines | Discovered new exit (range 6) 1705 | -8/Mines | Found a Scrap Suit stashed away for nefarious purposes 1924 | -8/Mines | Entered Materials 1924 | -8/Materials | Evolved 2 slots: Utility x2 1925 | -8/Materials | Loaded intel: 18 trap records 1933 | -8/Materials | Discovered new exit (range 15) 1936 | -8/Materials | Discovered new exit (range 14) 1962 | -8/Materials | Identified exit to Garrison 2349 | -8/Materials | Build established: Hacker-Scout 2358 | -8/Materials | Discovered new exit (range 11) 2362 | -8/Materials | Identified exit to Storage 2423 | -8/Materials | Entered Garrison 2423 | -8/Garrison | Accompanied by 3 allies 2615 | -8/Garrison | Triggered checkpoint 2666 | -8/Garrison | Garrison Relay disabled 2781 | -8/Garrison | Triggered checkpoint 2821 | -8/Garrison | Garrison Relay disabled 2830 | -8/Garrison | Discovered new exit (range 17) 2839 | -8/Garrison | Triggered checkpoint 2867 | -8/Garrison | Garrison Relay disabled 3315 | -8/Garrison | Triggered checkpoint 3325 | -8/Garrison | Discovered new exit (range 11) 3363 | -8/Garrison | Installed Relay Interface Framework 3654 | -8/Garrison | Discovered new exit (range 12) 3685 | -8/Garrison | Triggered checkpoint 3761 | -8/Garrison | Garrison Relay disabled 3830 | -8/Garrison | Entered Materials 3967 | -8/Materials | Identified exit to Factory 4067 | -8/Materials | Identified exit to Garrison 4067 | -8/Materials | Entered Garrison 4220 | -8/Garrison | Garrison Relay disabled 4526 | -8/Garrison | Build established: Hacker-Sprinter 4683 | -8/Garrison | Garrison Relay disabled 4694 | -8/Garrison | Discovered exit to Factory (range 12) 4751 | -8/Garrison | Triggered checkpoint 4895 | -8/Garrison | Expanded RIF knowledge: Signal Jamming 5445 | -8/Garrison | Discovered exit to Factory (range 12) 5545 | -8/Garrison | Expanded RIF knowledge: Autooverride 5574 | -8/Garrison | Discovered exit to Factory (range 8) 5575 | -8/Garrison | Entered Factory 5575 | -7/Factory | Evolved 2 slots: Utility x2 5616 | -7/Factory | Identified exit to DSF 5802 | -7/Factory | Fabricated Hacking Suite (x1) 5834 | -7/Factory | Fabricated Hacking Suite (x1) 5861 | -7/Factory | Repaired Rocket Launcher+? 5944 | -7/Factory | Sucked down chute 5944 | -7/Factory | Entered Waste 5947 | -7/Waste | Spotted C-40 Crusher 5950 | -7/Waste | Spotted C-40 Crusher 5953 | -7/Waste | Spotted C-40 Crusher 5953 | -7/Waste | Spotted C-40 Crusher 5956 | -7/Waste | Spotted C-40 Crusher 5959 | -7/Waste | EMP discharged 5966 | -7/Waste | Spotted C-40 Crusher 5973 | -7/Waste | Discovered new exit (range 11) 5976 | -7/Waste | Entered Factory 6030 | -7/Factory | Discovered new exit (range 8) 6098 | -7/Factory | Identified exit to Garrison 6115 | -7/Factory | Entered Garrison 6115 | -7/Garrison | Accompanied by 1 ally 6153 | -7/Garrison | Build established: Hacker-Scout 6237 | -7/Garrison | Triggered checkpoint 6237 | -7/Garrison | Triggered checkpoint 6280 | -7/Garrison | Discovered new exit (range 8) 6308 | -7/Garrison | Discovered new exit (range 6) 6308 | -7/Garrison | Discovered new exit (range 65) 6308 | -7/Garrison | Discovered new exit (range 74) 6308 | -7/Garrison | Discovered new exit (range 28) 6350 | -7/Garrison | Expanded RIF knowledge: Autooverride 6364 | -7/Garrison | Garrison Relay disabled 6365 | -7/Garrison | Triggered checkpoint 6397 | -7/Garrison | Triggered checkpoint 6397 | -7/Garrison | Garrison Relay disabled 6445 | -7/Garrison | Entered Factory 6445 | -6/Factory | Evolved 2 slots: Utility x2 6458 | -6/Factory | Identified exit to Garrison 6486 | -6/Factory | Fabricated S-27 Virus? 6488 | -6/Factory | Central database locked down 6521 | -6/Factory | Fabricated G-50 Soldier (x3) 6539 | -6/Factory | Build established: Wizard-Sprinter 6545 | -6/Factory | Fabricated Imp. Hacking Suite (x1) 6601 | -6/Factory | Garrison activated, responded to threat 6615 | -6/Factory | Manually triggered Chute Trap 6615 | -6/Factory | Sucked down chute 6615 | -6/Factory | Entered Waste 6618 | -6/Waste | Spotted C-40 Crusher 6625 | -6/Waste | 1 allies followed down the chute 6626 | -6/Waste | Spotted C-40 Crusher 6627 | -6/Waste | Spotted C-40 Crusher 6630 | -6/Waste | EMP discharged 6641 | -6/Waste | Spotted C-40 Crusher 6641 | -6/Waste | Spotted C-40 Crusher 6647 | -6/Waste | Spotted C-40 Crusher 6648 | -6/Waste | Discovered new exit (range 13) 6652 | -6/Waste | Entered Factory 6674 | -6/Factory | Unchained authorized (6S-H0T) 6714 | -6/Factory | Exiles provided nearest exit location to -5/Factory 6718 | -6/Factory | Identified exit to DSF 6729 | -6/Factory | Fabricated Imp. Hacking Suite? 6797 | -6/Factory | Fabricated S-27 Virus? 6820 | -6/Factory | Fabricated S-27 Virus? 6827 | -6/Factory | Lost 9 parts (1p2n4u2w) 6856 | -6/Factory | Lost 3 allies 6881 | -6/Factory | Discovered exit to Factory (range 20) 6965 | -6/Factory | Identified exit to Lower Caves 6977 | -6/Factory | Identified exit to Garrison 6979 | -6/Factory | Entered Garrison 6979 | -6/Garrison | Accompanied by 1 ally 7007 | -6/Garrison | Found Fusion Bomb Launcher 7025 | -6/Garrison | Discovered exit to Factory (range 33) 7025 | -6/Garrison | Discovered exit to Factory (range 49) 7025 | -6/Garrison | Discovered exit to Factory (range 47) 7089 | -6/Garrison | Build established: Hacker-Mutant 7149 | -6/Garrison | Triggered checkpoint 7159 | -6/Garrison | Found embedded Infiltrators 7167 | -6/Garrison | Triggered checkpoint 7181 | -6/Garrison | Garrison Relay disabled 7233 | -6/Garrison | Triggered checkpoint 7279 | -6/Garrison | Triggered checkpoint 7316 | -6/Garrison | Expanded RIF knowledge: Robot Detection 7325 | -6/Garrison | Learned Factory security intel 7325 | -6/Garrison | Central database locked down 7332 | -6/Garrison | Garrison Relay disabled 7335 | -6/Garrison | Triggered checkpoint 7378 | -6/Garrison | Garrison Relay disabled 7601 | -6/Garrison | Entered Factory 7601 | -5/Factory | Accompanied by 4 allies 7601 | -5/Factory | Evolved 2 slots: Utility x2 7791 | -5/Factory | Identified exit to Upper Caves 7805 | -5/Factory | Unchained authorized (6S-H0T) 7848 | -5/Factory | Fabricated A-02 Transporter? 7881 | -5/Factory | Fabricated S-27 Virus? 7905 | -5/Factory | Fabricated Adv. Powered Armor? 7909 | -5/Factory | Fabricated S-27 Virus? 7949 | -5/Factory | Lost 8 allies 8145 | -5/Factory | Lost 7 parts (1p6u) 8150 | -5/Factory | Lost 4 allies 8229 | -5/Factory | Fabricated Imp. Hacking Suite? 8263 | -5/Factory | Fabricated Imp. Hacking Suite? 8352 | -5/Factory | Manually triggered Chute Trap 8352 | -5/Factory | Sucked down chute 8352 | -5/Factory | Entered Waste 8355 | -5/Waste | Spotted C-40 Crusher 8366 | -5/Waste | Warlord forces began an assault 8409 | -5/Waste | Spotted C-40 Crusher 8413 | -5/Waste | Spotted C-40 Crusher 8416 | -5/Waste | Allies destroyed C-40 Crusher 8419 | -5/Waste | Spotted C-40 Crusher 8422 | -5/Waste | Allies destroyed C-40 Crusher 8423 | -5/Waste | Allies destroyed C-40 Crusher 8449 | -5/Waste | Lost 3 allies 8450 | -5/Waste | Spotted C-40 Crusher 8490 | -5/Waste | Discovered new exit (range 12) 8592 | -5/Waste | Entered Factory 8592 | -5/Factory | Accompanied by 14 allies 8725 | -5/Factory | Fabricated Imp. Hacking Suite? 8745 | -5/Factory | Repaired Adv. Surge Thruster 8803 | -5/Factory | Fabricated Imp. Hacking Suite (x1) 8876 | -5/Factory | Garrison activated, responded to threat 8902 | -5/Factory | P-70 Sage assimilated allied JP-MFB(g) 8915 | -5/Factory | Repaired Fusion Bomb Launcher? 8918 | -5/Factory | P-70 Sage assimilated allied FM-GUR(d) 8929 | -5/Factory | Identified exit to Garrison 8929 | -5/Factory | Entered Garrison 8932 | -5/Garrison | Warlord forces raided the area 8945 | -5/Garrison | Lost 5 allies 8977 | -5/Garrison | Triggered checkpoint 9018 | -5/Garrison | Garrison Relay disabled 9024 | -5/Garrison | Spotted B-75 Beast 9033 | -5/Garrison | Triggered checkpoint 9033 | -5/Garrison | Triggered checkpoint 9041 | -5/Garrison | Assimilated Beast 6a with formatsys_high 9069 | -5/Garrison | Discovered new exit (range 29) 9069 | -5/Garrison | Discovered new exit (range 41) 9069 | -5/Garrison | Discovered new exit (range 51) 9089 | -5/Garrison | Identified exit to Factory 9095 | -5/Garrison | Triggered checkpoint 9105 | -5/Garrison | Triggered checkpoint 9119 | -5/Garrison | Triggered checkpoint 9135 | -5/Garrison | Expanded RIF knowledge: Threat Obfuscation 9141 | -5/Garrison | Garrison Relay disabled 9187 | -5/Garrison | Triggered checkpoint 9188 | -5/Garrison | Garrison Relay disabled 9243 | -5/Garrison | Found embedded Infiltrators 9293 | -5/Garrison | Garrison Relay disabled 9297 | -5/Garrison | Triggered checkpoint 9340 | -5/Garrison | Rescued a captive Derelict 9343 | -5/Garrison | Rescued a captive Derelict 9415 | -5/Garrison | Triggered checkpoint 9415 | -5/Garrison | Entered Factory 9415 | -4/Factory | Accompanied by 5 allies 9415 | -4/Factory | Evolved 2 slots: Utility x2 9430 | -4/Factory | Identified exit to Garrison 9528 | -4/Factory | Fabricated A-27 Freighter (x1) 9596 | -4/Factory | Fabricated S-27 Virus? 9621 | -4/Factory | Repaired Adv. Surge Thruster 9710 | -4/Factory | Garrison activated, responded to threat 9733 | -4/Factory | Identified exit to Garrison 9733 | -4/Factory | Entered Garrison 9747 | -4/Garrison | Lost 8 allies 9763 | -4/Garrison | Spotted B-86 Titan 9779 | -4/Garrison | Found Relay Coupler [Proto] 9781 | -4/Garrison | Found Relay Coupler [Proto] 9818 | -4/Garrison | Spotted B-86 Titan 9819 | -4/Garrison | Triggered checkpoint 9843 | -4/Garrison | Discovered new exit (range 10) 9847 | -4/Garrison | Lost 8 parts (1p3n4u) 9853 | -4/Garrison | Discovered new exit (range 57) 9853 | -4/Garrison | Discovered new exit (range 85) 9853 | -4/Garrison | Discovered new exit (range 12) 9853 | -4/Garrison | Discovered new exit (range 67) 9861 | -4/Garrison | Garrison Relay disabled 9869 | -4/Garrison | Triggered checkpoint 9939 | -4/Garrison | Triggered checkpoint 10011 | -4/Garrison | Rescued a captive Derelict 10013 | -4/Garrison | Rescued a captive Derelict 10019 | -4/Garrison | Found embedded Infiltrators 10062 | -4/Garrison | Build established: Botlord-Mutant 10230 | -4/Garrison | Allies destroyed B-86 Titan 10251 | -4/Garrison | Triggered checkpoint 10253 | -4/Garrison | Garrison Relay disabled 10295 | -4/Garrison | Triggered checkpoint 10342 | -4/Garrison | Expanded RIF knowledge: Structural Interface 10403 | -4/Garrison | Triggered checkpoint 10407 | -4/Garrison | Triggered checkpoint 10555 | -4/Garrison | Rewired Executioner 10678 | -4/Garrison | Allies destroyed B-86 Titan 10684 | -4/Garrison | Found Exp. Targeting Computer 10690 | -4/Garrison | Found Relay Coupler [Proto] 10692 | -4/Garrison | Found Relay Coupler [Proto] 10712 | -4/Garrison | Garrison Relay disabled 10818 | -4/Garrison | Entered Factory 10818 | -4/Factory | Accompanied by 6 allies 10958 | -4/Factory | Discovered new exit (range 5) 10989 | -4/Factory | Identified exit to Upper Caves 10989 | -4/Factory | Identified exit to Extension 10989 | -4/Factory | Identified exit to Armory 11147 | -4/Factory | Central database locked down 11301 | -4/Factory | Fabricated A-27 Freighter? 11351 | -4/Factory | Fabricated A-27 Freighter (x1) 11519 | -4/Factory | Build established: Botlord-Sprinter 11688 | -4/Factory | Entered Extension 11823 | -4/Extension | Rescued a captive Derelict 11826 | -4/Extension | Rescued a captive Derelict 12028 | -4/Extension | Spotted B-86 Titan 12098 | -4/Extension | Allies destroyed B-86 Titan 12129 | -4/Extension | Lost 5 allies 12137 | -4/Extension | Spotted B-86 Titan 12228 | -4/Extension | Lost 6 allies 12272 | -4/Extension | Rescued a captive Derelict 12295 | -4/Extension | Core integrity fell below 50% 12296 | -4/Extension | Rescued A7 12423 | -4/Extension | Rescued a captive Derelict 12459 | -4/Extension | Rescued a captive Derelict 12460 | -4/Extension | Rescued a captive Derelict 12480 | -4/Extension | Build established: Botlord-Mutant 12579 | -4/Extension | Learned 4 Factory zone layouts 12589 | -4/Extension | Discovered new exit (range 10) 12591 | -4/Extension | Discovered new exit (range 6) 12723 | -4/Extension | Learned location of Testing (-3) 12825 | -4/Extension | Learned 4 Armory zone layouts 12908 | -4/Extension | Learned Factory recycling unit intel 12923 | -4/Extension | Entered Cetus 12923 | -4/Cetus | Accompanied by 4 allies (A7) 12928 | -4/Cetus | Acquired a Cetus Manufacturing Module code from A7 12957 | -4/Cetus | Spotted Cetus Guard 12957 | -4/Cetus | Spotted Cetus Guard 12959 | -4/Cetus | Spotted Cetus Guard 12959 | -4/Cetus | Spotted Cetus Guard 12967 | -4/Cetus | Allies destroyed Cetus Guard 12968 | -4/Cetus | Allies destroyed Cetus Guard 12978 | -4/Cetus | Allies destroyed Cetus Guard 12978 | -4/Cetus | Allies destroyed Cetus Guard 13032 | -4/Cetus | Escorted A7 to Cetus Mainframe 13041 | -4/Cetus | Started Cetus Manufacturing Module 13053 | -4/Cetus | Discovered new exit (range 15) 13066 | -4/Cetus | Manufactured an Enhanced Grunt 13091 | -4/Cetus | Manufactured an Enhanced Grunt 13116 | -4/Cetus | Manufactured an Enhanced Grunt 13141 | -4/Cetus | Manufactured an Enhanced Grunt 13166 | -4/Cetus | Manufactured an Enhanced Grunt 13194 | -4/Cetus | Spotted Cetus Guard 13194 | -4/Cetus | Spotted Cetus Guard 13198 | -4/Cetus | Spotted Cetus Guard 13198 | -4/Cetus | Spotted Cetus Guard 13206 | -4/Cetus | Allies destroyed Cetus Guard 13216 | -4/Cetus | Allies destroyed Cetus Guard 13219 | -4/Cetus | Allies destroyed Cetus Guard 13222 | -4/Cetus | Discovered new exit (range 15) 13227 | -4/Cetus | Met Revision 17 13286 | -4/Cetus | Entered Archives 13286 | -4/Archives | Accompanied by 9 allies (A7) 13291 | -4/Archives | Received a hacking code to weaken MAIN.C 13329 | -4/Archives | Discovered new exit (range 16) 13409 | -4/Archives | Discovered new exit (range 16) 13426 | -4/Archives | Discovered new exit (range 14) 13868 | -4/Archives | Build established: Wizard-Mutant 13909 | -4/Archives | Entered Hub_04(d) 13909 | -4/Hub_04(d) | Accompanied by 7 allies 13930 | -4/Hub_04(d) | Identified exit to Research 14097 | -4/Hub_04(d) | Identified exit to Garrison 14165 | -4/Hub_04(d) | Garrison activated, responded to threat 14227 | -4/Hub_04(d) | Found Prototype Device 14227 | -4/Hub_04(d) | Identified Exp. Thermal Shield 14260 | -4/Hub_04(d) | Network Hub disabled 14260 | -4/Hub_04(d) | Network Hub disabled 14282 | -4/Hub_04(d) | Spotted Lightning 14284 | -4/Hub_04(d) | Entered Garrison 14286 | -4/Garrison | Murdered 3 allies 14325 | -4/Garrison | Build established: Wizard-Sprinter 14355 | -4/Garrison | Garrison Relay disabled 14358 | -4/Garrison | Triggered checkpoint 14406 | -4/Garrison | Core integrity fell below 20% 14516 | -4/Garrison | Rescued a captive Derelict 14517 | -4/Garrison | Rescued a captive Derelict 14776 | -4/Garrison | Discovered exit to Research (range 10) 14842 | -4/Garrison | Triggered checkpoint 14842 | -4/Garrison | Discovered exit to Research (range 89) 14842 | -4/Garrison | Discovered exit to Research (range 15) 14842 | -4/Garrison | Discovered exit to Research (range 56) 14842 | -4/Garrison | Learned Research security intel 14847 | -4/Garrison | Garrison Relay disabled 14926 | -4/Garrison | Spotted B-86 Titan 14944 | -4/Garrison | Allies destroyed B-86 Titan 14985 | -4/Garrison | Triggered checkpoint 15010 | -4/Garrison | Triggered checkpoint 15068 | -4/Garrison | Build established: Botlord-Sprinter 15195 | -4/Garrison | Spotted B-86 Titan 15269 | -4/Garrison | Found Relay Coupler [Proto] 15271 | -4/Garrison | Found Relay Coupler [Proto] 15358 | -4/Garrison | Triggered checkpoint 15404 | -4/Garrison | Expanded RIF knowledge: Code Merge 15430 | -4/Garrison | Garrison Relay disabled 15440 | -4/Garrison | Entered Research 15440 | -3/Research | Evolved 2 slots: Utility x2 15640 | -3/Research | Revision forces began assault on 0b10 15697 | -3/Research | Found Prototype Hackware 15697 | -3/Research | Identified Exp. Hacking Suite 15751 | -3/Research | Met up with Revision 17++ 15752 | -3/Research | Build established: Botlord-Scout 15764 | -3/Research | Discovered new exit (range 13) 15858 | -3/Research | Fabricated Nanosword (x1) 15880 | -3/Research | Spotted B-86 Titan 15907 | -3/Research | Found Prototype Processor 15907 | -3/Research | Identified Exp. Signal Interpreter 15923 | -3/Research | Loaded intel: 4 garrison access locations 15955 | -3/Research | Loaded intel: 122 machine locations 15979 | -3/Research | Learned Quarantine emergency access door positions 15999 | -3/Research | Learned location of 1 exit from Testing 16000 | -3/Research | Learned Quarantine machine intel 16001 | -3/Research | Identified exit to Testing 16001 | -3/Research | Identified exit to Research 16018 | -3/Research | Central database locked down 16087 | -3/Research | Murdered Revision 17++ 16103 | -3/Research | Identified exit to Garrison 16115 | -3/Research | Entered Garrison 16115 | -3/Garrison | Accompanied by 2 allies 16122 | -3/Garrison | Expanded RIF knowledge: Alert ID Control 16131 | -3/Garrison | Discovered exit to Research (range 49) 16131 | -3/Garrison | Discovered exit to Research (range 62) 16131 | -3/Garrison | Discovered exit to Research (range 54) 16131 | -3/Garrison | Learned Research security intel 16139 | -3/Garrison | Garrison Relay disabled 16149 | -3/Garrison | Triggered checkpoint 16171 | -3/Garrison | Rescued a captive Derelict 16173 | -3/Garrison | Rescued a captive Derelict 16221 | -3/Garrison | Spotted B-86 Titan 16225 | -3/Garrison | Triggered checkpoint 16280 | -3/Garrison | Lost 6 allies 16282 | -3/Garrison | Found Relay Coupler [Proto] 16284 | -3/Garrison | Found Relay Coupler [Proto] 16514 | -3/Garrison | Entered Research 16514 | -2/Research | Evolved 2 slots: Utility x2 16515 | -2/Research | Identified exit to Quarantine 16541 | -2/Research | Spotted B-90 Cyclops 16552 | -2/Research | Identified exit to Garrison 16670 | -2/Research | Fabricated Femtoactuators? 16693 | -2/Research | Spotted B-90 Cyclops 16758 | -2/Research | Discovered new exit (range 15) 16790 | -2/Research | Repaired Nanosword 16867 | -2/Research | Fabricated Exp. Utility Shielding (x1) 16883 | -2/Research | Found Prototype Launcher 16883 | -2/Research | Identified Tactical Quantum Warhead 16963 | -2/Research | Found Prototype Device 16968 | -2/Research | Entered Garrison 16971 | -2/Garrison | Identified Exp. Thermal Defense Suite 17014 | -2/Garrison | Rescued a captive Derelict 17032 | -2/Garrison | Triggered checkpoint 17037 | -2/Garrison | Garrison Relay disabled 17051 | -2/Garrison | Lost 3 parts (1p2n) 17083 | -2/Garrison | Lost 3 allies 17464 | -2/Garrison | Crushed by falling debris 17476 | -2/Garrison | Discovered new exit (range 10) 17486 | -2/Garrison | Expanded RIF knowledge: Coupler Efficiency 17502 | -2/Garrison | Triggered checkpoint 17505 | -2/Garrison | Garrison Relay disabled 17618 | -2/Garrison | Triggered checkpoint 17618 | -2/Garrison | Spotted B-90 Cyclops 17624 | -2/Garrison | Triggered checkpoint 17632 | -2/Garrison | Discovered new exit (range 5) 17798 | -2/Garrison | Triggered checkpoint 17800 | -2/Garrison | Garrison Relay disabled 18075 | -2/Garrison | Entered Research 18085 | -2/Research | Discovered new exit (range 17) 18097 | -2/Research | Identified exit to Garrison 18272 | -2/Research | Repaired Exp. Utility Shielding 18279 | -2/Research | Unchained authorized (GL-D0S) 18376 | -2/Research | Entered Garrison 18396 | -2/Garrison | Garrison Relay disabled 18558 | -2/Garrison | Triggered checkpoint 18595 | -2/Garrison | Garrison Relay disabled 18703 | -2/Garrison | Build established: Botlord-Mutant 18794 | -2/Garrison | Discovered new exit (range 45) 18794 | -2/Garrison | Discovered new exit (range 64) 18794 | -2/Garrison | Discovered new exit (range 12) 18794 | -2/Garrison | Learned Access security intel 18830 | -2/Garrison | Garrison Relay disabled 18924 | -2/Garrison | Garrison Relay disabled 18936 | -2/Garrison | Found embedded Infiltrators 18944 | -2/Garrison | Triggered checkpoint 19104 | -2/Garrison | Triggered checkpoint 19111 | -2/Garrison | Triggered checkpoint 19126 | -2/Garrison | Triggered checkpoint 19198 | -2/Garrison | Garrison Relay disabled 19200 | -2/Garrison | Triggered checkpoint 19203 | -2/Garrison | Assimilated Heavy ARC 9a with formatsys_deep 19308 | -2/Garrison | Expanded RIF knowledge: Coupler Efficiency 19331 | -2/Garrison | Entered Access 19331 | -1/Access | Accompanied by 2 allies 19331 | -1/Access | Evolved 2 slots: Utility x2 19453 | -1/Access | Spotted B-99 Colossus 19454 | -1/Access | Spotted B-99 Colossus 19484 | -1/Access | Identified exit to Garrison 19501 | -1/Access | Unchained authorized (GL-D0S) 19507 | -1/Access | Entered Garrison 19507 | -1/Garrison | Accompanied by 2 allies 19512 | -1/Garrison | Discovered new exit (range 41) 19512 | -1/Garrison | Discovered new exit (range 73) 19512 | -1/Garrison | Discovered new exit (range 78) 19512 | -1/Garrison | Learned Access security intel 19527 | -1/Garrison | Garrison Relay disabled 19561 | -1/Garrison | Triggered checkpoint 19572 | -1/Garrison | Triggered checkpoint 19573 | -1/Garrison | Triggered checkpoint 19631 | -1/Garrison | Lost 3 allies 19667 | -1/Garrison | Triggered checkpoint 19674 | -1/Garrison | Spotted B-99 Colossus 19718 | -1/Garrison | Expanded RIF knowledge: Crosswire 19737 | -1/Garrison | Lost 6 allies 19783 | -1/Garrison | Entered Access 19828 | -1/Access | Found Exp. Core Analyzer 19829 | -1/Access | Found Exp. Core Analyzer 19948 | -1/Access | Unchained authorized (GL-D0S) 20055 | -1/Access | Energy Cycler disabled 20440 | -1/Access | Discovered new exit (range 6) 20594 | -1/Access | Spotted B-99 Colossus 20689 | -1/Access | Build established: Botlord-Scout 20829 | -1/Access | Lost 4 parts (4u) 20849 | -1/Access | Discovered new exit (range 8) 20851 | -1/Access | Identified exit to Command 20851 | -1/Access | Entered Command 20869 | -1/Command | Lost 3 parts (1p2u) 21091 | -1/Command | Build established: Botlord-Mutant 21416 | -1/Command | Spotted M Guard 21416 | -1/Command | Spotted Combat Programmer 21416 | -1/Command | Spotted Combat Programmer 21480 | -1/Command | Spotted M Guard 21481 | -1/Command | Core integrity fell below 50% 21487 | -1/Command | Core integrity fell below 20% 21490 | -1/Command | Destroyed by M Guard with Ragnarok Missile Launcher Last Messages --------------- 21483_ Exp. Core Analyzer destroyed. 21483_ Knocked back. 21483_ Relay Coupler [Proto] destroyed. 21483_ Combat Programmer repels hacking attempt. 21484_ Penetrated by EMDS Slug. 21484_ Adv. Melee Analysis Suite destroyed. 21484_ Relay Coupler [Proto] destroyed. 21484_ Dropped Exp. Power Amplifier. 21484_ Penetrated by EMDS Slug. 21485_ Dropped Adv. Remote Datajack+. 21486_ Adv. Visual Processing Unit destroyed. 21486_ Knocked back. 21487_ Penetrated by EMDS Slug. 21488_ EMDS Slug penetrates Earth. 21489_ The unstable cave ceiling collapses. 21489_ Penetrated by EMDS Slug. 21489_ System Shield destroyed. 21489_ Relay Coupler [NC] destroyed. 21489_ Femtoactuators destroyed. 21489_ Knocked back. Map ----- +----------------------------------------------------+ | ?????????????????????????# #???????????????????? | | ?????????????????????????# #???????????????????? | | ?????????????????????????# #???????????????????? | | ?????????????????????????# #???????????????????? | | ?????????????????????????# #???????????????????? | | ?????????????????????????# #???????????????????? | | ?????????????????????????# #???????????????????? | | ?????????????????????????# #???????????????????? | | ?????????????????????????# #???????????????????? | | ?????????????????????????# #???????????????????? | | ?????????????????????????# #???????????????????? | | ?????????????????????????# #???????????????????? | | ?????????????????????????# #???????????????????? | | ?????????????????????????# #???????????????????? | | ?????????????????????????# p #???????????????????? | | ??????????????????????#### p#########???????????? | | ??????????????????????# " # # ##??????????? | | ??????????????????????## # #??????????? | | ???????????????????????#### ####?#####?? | | ????????????????????????## #?# #?? | | ??????????????????#+++### W W # ### ### | | ??????????????????# ! R + | | ??????????????????# Y + | | ??????????????????# + | | ??????????????????# Y p + | | ??????????????????# p @ + | | ??????????????????# # W # ### ### | | ??????????????????####?# ## #?# #?? | | ??????????????????????# # # ######?#####?? | | ??????????????????????#### ## ##????????????? | | ?????????????????????????# ##??##?????????????? | | ?????????????????????????# ##??????????????????? | | ?????????????????????????# #???????????????????? | | ?????????????????????????# #???????????????????? | | ?????????????????????????# #???????????????????? | | ?????????????????????????# #???????????????????? | | ?????????????????????????# #????????????????#### | | ?????????????????????????# #????????????????# | | ?????????????????????????# #????????????????# | | ?????????????????????????# #????????????????# | | ?????????????????????????# ?????????????????# | | ?????????????????????????? ?????????????????# | | ?????????????????????????? ?????????????????# | | ??????????????????????????????????????????????# | | ??????????????????????????????????????????????# | | ??????????????????????????????????????????????# | | ??????????????????????????????????????????????# | | ??????????????????????????????????????????????# | | ??????????????????????????????????????????????#### | | ???????????????????????????????????????????????# | +----------------------------------------------------+ Best States ------------- Heat Dissipation 52 Energy Generation 25 Energy Capacity 190 Matter Stores 300 Matter Capacity 300 Sight Range 20 Robot Scan Range 16 Terrain Scan Range 24 Terrain Scan Density 110 Jamming Range 12 Power Amplification 40 Corruption Containment 12 Corruption Block 8 Armor Coverage 400 Utility Shielding 90 Weapon Cycling 25 Melee Speed Boost 50 Evasion (%) 65 Targeting Accuracy 6 Melee Accuracy 8 Core Analysis 12 Offensive Hacking 74 Defensive Hacking 20 Relay Coupler Types 9 Relay Coupler Value 479 Authchip Count 3 Trap Extractor Capacity 8 Item Schematics ----------------- Huge Storage Unit | -10/Materials | Hacked VTOL Module | -9/Materials | Hacked Imp. VTOL Module | -8/Materials | Scanalyzed Rocket Launcher | -8/Materials | Scanalyzed Hacking Suite | -8/Materials | Hacked Datajack | -8/Materials | Hacked Surge Thruster | -8/Materials | Scanalyzed Imp. Hacking Suite | -6/Factory | Hacked Hvy. Flail | -6/Garrison | Hacked Micro-nuke Launcher | -5/Factory | Hacked Imp. Remote Force Field | -5/Factory | Hacked Enh. Nova Cannon | -4/Factory | Scanalyzed Imp. Remote Datajack | -4/Factory | Scanalyzed Adv. Surge Thruster | -4/Extension | Hacked Adv. Hacking Suite | -4/Extension | Hacked Nanosword | -3/Research | Hacked Femtoactuators | -3/Research | Hacked Exp. Actuator Array | -3/Research | Hacked Adv. Force Booster | -3/Research | Hacked Exp. Utility Shielding | -3/Garrison | Hacked Exp. EM Shield | -2/Research | Hacked Robot Schematics ------------------ S-27 Virus | -7/Factory | Hacked G-50 Soldier | -6/Factory | Hacked A-27 Freighter | -5/Garrison | Hacked C-55 Analyst | -3/Research | Hacked P-80 Master | -3/Research | Hacked Fabricated ------------ Hacking Suite | x1 | -7/Factory | Authchip Hacking Suite | x1 | -7/Factory | Authchip S-27 Virus | x4 | -6/Factory | Authchip G-50 Soldier | x3 | -6/Factory | Preloaded Imp. Hacking Suite | x1 | -6/Factory Imp. Hacking Suite | x1 | -6/Factory | Authchip S-27 Virus | x4 | -6/Factory S-27 Virus | x4 | -6/Factory A-02 Transporter | x1 | -5/Factory | Preloaded S-27 Virus | x4 | -5/Factory Adv. Powered Armor | x1 | -5/Factory | Preloaded S-27 Virus | x4 | -5/Factory Imp. Hacking Suite | x1 | -5/Factory Imp. Hacking Suite | x1 | -5/Factory Imp. Hacking Suite | x1 | -5/Factory | Authchip Imp. Hacking Suite | x1 | -5/Factory A-27 Freighter | x1 | -4/Factory | Authchip S-27 Virus | x4 | -4/Factory | Authchip A-27 Freighter | x1 | -4/Factory | Authchip A-27 Freighter | x1 | -4/Factory | Authchip Nanosword | x1 | -3/Research Femtoactuators | x1 | -2/Research | Authchip Exp. Utility Shielding | x1 | -2/Research Repaired ---------- Rocket Launcher | 28% | -7/Factory Adv. Surge Thruster | 50% | -5/Factory Fusion Bomb Launcher | 73% | -5/Factory Adv. Surge Thruster | 36% | -4/Factory Nanosword | 63% | -2/Research Exp. Utility Shielding | 35% | -2/Research Studied --------- Flight Unit | -9/Materials | Hacked Datajack | -8/Materials | Hacked Imp. Datajack | -8/Materials | Hacked Surge Thruster | -8/Materials | Hacked Rocket Launcher | -8/Materials | Hacked Nuclear Pulse Thruster | -6/Factory | Hacked Magnetic Acceleration Cannon | -6/Factory | Hacked Mic. Nuclear Core | -5/Factory | Hacked Imp. Remote Datajack | -4/Factory | Hacked Adv. Remote Datajack | -3/Research | Hacked VTOL Module | -3/Research | Hacked Enh. Nova Cannon | -3/Research | Hacked Xenon Bombardment Thruster | -2/Research | Hacked Alien Tech Used ----------------- None Achievements -------------- None Challenges ------------ None Game ------ Seed VariablePlatingExpander Manual? 0 Play Time 08:51:16 Cumulative 1042.1 hours Start 2025.11.05 @ 08:13:50 End 2025.11.06 @ 15:29:53 Sessions 7 Manual Loads 0 Difficulty Rogue Special Mode None Game No. 376 Rogue 371 Adventurer 4 Explorer 1 Win Type - Total 21 Types 13/3/1/1/0/1/0/0/1/1 Lore% 96 Gallery% 94 Achievement% 79 Wizard Run 0 Options --------- Layout 1 ASCII 0 Keyboard 0 Movement Numpad Keybinds 0 Fullscreen 2 Font 24/Smallcaps Map View 50x35 Zoom Use 0% Tactical HUD 1 Map Filters NONE Filters NONE Steam 1 RUN: 4b094ed4-6f54-4b1f-8ecd-ba1ca9ae9b0d